{"text_format":"1","workbook":"xlsx","n_sheets":9,"sheets":["目次","記入上の注意事項等","基本情報","1_広域化・共有化","2.3_現状の監視制御ｼｽﾃﾑ","4_ネットワーク","5_セキュリティ","6_ソリューション","❶"],"not_rendered":{"charts":0,"images":93,"macros":1,"external_links":0,"defined_names":8,"comments":0,"pivot_tables":0},"unopened":[],"bounds":{"document_bytes":16777216,"sheet_cells":100000,"rows_first":2000,"rows_last":500,"rows_between":2000,"halvings":0,"cell_chars":16384,"cell_head_chars":4096},"cells_cut":0,"cells_raw":0,"read":"whole","date_system":"1900"}

{"sheet":"目次","index":0,"n_rows":25,"n_cols":5,"rows_kept":25,"cut":false,"hidden":false,"merged":[[24,3,24,14],[23,3,23,14],[5,2,5,15],[11,3,11,14]]}
[]
[]
[]
[]
[]
[null,null,"「上下水道施設における広域化・共同化のためのシステムに関する技術」アンケート"]
[]
[]
[]
[]
[]
[null,null,null,"目　　次"]
[]
[null,null,null,null,"・記入上の注意事項"]
[null,null,null,null,"・基本情報"]
[null,null,null,null,"1. 広域化・共同化について"]
[null,null,null,null,"2. 現状の監視制御システムの導入状況について"]
[null,null,null,null,"3. 現状の監視制御システムについて"]
[null,null,null,null,"4. ネットワークについて"]
[null,null,null,null,"5. 監視システムのセキュリティについて"]
[null,null,null,null,"6. ソリューションについて"]
[]
[]
[null,null,null,"令和5年　9月"]
[null,null,null,"電気学会　「上下水道施設における広域化・共同化のためのシステムに関する技術」調査専門委員会"]

{"sheet":"記入上の注意事項等","index":1,"n_rows":28,"n_cols":4,"rows_kept":28,"cut":false,"hidden":false,"merged":[[15,3,15,15],[8,2,9,9],[11,3,11,15],[12,3,12,15],[13,3,13,15],[14,3,14,15],[24,3,24,15],[25,3,25,15],[26,3,26,15],[27,3,27,15],[16,3,16,15],[17,3,17,15],[18,3,18,15],[19,3,19,15],[22,3,22,15],[23,3,23,15],[20,3,20,15],[21,3,21,15]]}
[]
[null,"【記入上の注意事項】"]
[null,null,"・記入例を参考に入力してください。"]
[null,null,"・水道、下水道事業の施設に関する維持管理の現況について記入してください。"]
[null,null,"・委託料の金額は税込額（令和2年度実績）を入力してください。"]
[null,null,"・上下水道局の場合は、水道及び下水道で分けてご回答ください。"]
[null,null,"・□のチェックボックスは複数選択が可能です。"]
[null,null,"・〇のチェックボックスは単一選択です。"]
[null,null,"・自由記述欄(テキストボックス)は、文字数の制限はありませんが表示範囲が決まっている為、\n　入力内容が全て表示されない場合があります。\n　表示されていない内容もボックス内には入力されていますので、ご承知おきください。"]
[]
[null,"【用語】"]
[null,null,"用語名","用語説明"]
[null,null,"維持管理業務","施設の運転管理業務，保全管理業務"]
[null,null,"運転管理業務","施設の運転操作，監視，日常点検を行う業務"]
[null,null,"保全管理業務","施設の定期・精密点検，機能を維持するために行う整備及び修繕を行う業務"]
[null,null,"日常点検","目視等により，設備の異常（異音，異臭，オイル漏れ等）及び構造物外観の異常の有無の確認等を行う点検（点検周期：毎日）"]
[null,null,"定期点検","日常点検項目に加え，機器の試運転，指示値（電流値，圧力等）の記録，オイル交換等を行う点検（点検周期：1か月～1年）"]
[null,null,"精密点検","機器の分解整備，計測機器の校正等，主に製造者が行う点検（点検周期：１年～数年）"]
[null,null,"管路点検","管路布設道における漏水の有無，道路・マンホール・弁類・水管橋の異常の確認等を行う点検"]
[null,null,"広域化・共同化","市町村の区域や下水処理の区域を超えた広域的な連携"]
[null,null,"垂直統合","用水供給事業と水道事業の統合"]
[null,null,"水平統合","複数の水道事業による事業統合や下水汚泥の共同処理"]
[null,null,"マルチベンダー","異なるメーカーや提供元のシステムを複数組み合わせて構築すること"]
[null,null,"ホワイトリスト方式","通信やアクセスを許可する対象をリスト化しそれ以外は拒否・禁止する方式"]
[null,null,"ファイヤーウォール","ネットワークの境界に設置され、内外の通信を監視し、外部攻撃から保護する仕組み"]
[null,null,"オンコール契約","故障等でプラント設備の稼働に関して緊急を要する場合に業者が駆けつけて即時対応する契約"]
[null,null,"オンプレミス型","自施設の構内に監視設備を設置し、システムの運用を行う方式"]
[null,null,"クラウド型","外部業者が用意した設備、ソフトウェアをインターネットを経由し利用する方式"]

{"sheet":"基本情報","index":2,"n_rows":62,"n_cols":67,"rows_kept":62,"cut":false,"hidden":false,"merged":[[17,0,18,22],[20,1,21,3],[20,4,21,14],[20,15,21,16],[20,17,20,18],[20,19,20,20],[20,21,20,22],[29,4,29,14],[29,15,29,16],[22,1,31,3],[22,4,22,14],[22,15,22,16],[23,4,23,14],[23,15,23,16],[24,4,24,14],[24,15,24,16],[25,4,25,14],[25,15,25,16],[26,4,26,14],[26,15,26,22],[27,4,27,14],[27,15,27,16],[28,4,28,14],[28,15,28,16],[37,4,37,14],[37,15,37,22],[30,4,30,14],[30,15,30,16],[31,4,31,14],[31,15,31,16],[32,4,32,14],[32,15,32,16],[33,4,33,14],[33,15,33,16],[34,4,34,14],[34,15,34,16],[35,4,35,14],[35,15,35,16],[36,4,36,14],[32,1,42,3],[48,1,48,3],[48,4,48,11],[40,4,40,14],[40,15,40,16],[41,4,41,14],[41,15,41,16],[42,4,42,14],[42,15,42,16],[36,15,36,16],[38,4,38,14],[38,15,38,16],[39,4,39,14],[39,15,39,16],[50,1,50,3],[50,4,50,11],[52,1,52,3],[52,4,52,11],[46,1,46,3],[46,4,46,11]]}
["【事業体名をご記入ください。】"]
[]
[null,"事業体名："]
[]
["【共通事項】"]
["Ｑ１.施設の事業分野を選択してください。(複数回答可)"]
[null,"【上水道】"]
[null,null,"①上水道施設",null,null,null,null,null,null,null,null,null,null,null,null,null,null,null,null,null,null,null,null,null,null,null,null,null,null,null,null,null,null,null,null,null,null,null,null,null,null,null,null,null,null,null,null,null,false,{"$f":"N(AW8)","v":0}]
[null,null,"②簡易水道施設",null,null,null,null,null,null,null,null,null,null,null,null,null,null,null,null,null,null,null,null,null,null,null,null,null,null,null,null,null,null,null,null,null,null,null,null,null,null,null,null,null,null,null,null,null,false,{"$f":"N(AW9)","v":0}]
[null,null,"③用水供給施設",null,null,null,null,null,null,null,null,null,null,null,null,null,null,null,null,null,null,null,null,null,null,null,null,null,null,null,null,null,null,null,null,null,null,null,null,null,null,null,null,null,null,null,null,null,false,0]
[null,null,"④その他(自由記述)",null,null,null,null,null,null,null,null,null,null,null,null,null,null,null,null,null,null,null,null,null,null,null,null,null,null,null,null,null,null,null,null,null,null,null,null,null,null,null,null,null,null,null,null,null,false,0]
[null,null,null,null,null,null,null,null,null,null,null,null,null,null,null,null,null,null,null,null,null,null,null,null,null,null,null,null,null,null,null,null,null,null,null,null,null,null,null,null,null,null,null,null,null,null,null,null,null,"(自由記述)"]
[null,"【下水道】"]
[null,null,"①公共下水道施設",null,null,null,null,null,null,null,null,null,null,null,null,null,null,null,null,null,null,null,null,null,null,null,null,null,null,null,null,null,null,null,null,null,null,null,null,null,null,null,null,null,null,null,null,null,false,0]
[null,null,"②流域下水道施設",null,null,null,null,null,null,null,null,null,null,null,null,null,null,null,null,null,null,null,null,null,null,null,null,null,null,null,null,null,null,null,null,null,null,null,null,null,null,null,null,null,null,null,null,null,false,0]
[null,null,"③その他(自由記述)",null,null,null,null,null,null,null,null,null,null,null,null,null,null,null,null,null,null,null,null,null,null,null,null,null,null,null,null,null,null,null,null,null,null,null,null,null,null,null,null,null,null,null,null,null,false,0]
[null,null,null,null,null,null,null,null,null,null,null,null,null,null,null,null,null,null,null,null,null,null,null,null,null,null,null,null,null,null,null,null,null,null,null,null,null,null,null,null,null,null,null,null,null,null,null,null,null,"(自由記述)"]
["Ｑ２.現状運用されている施設の数(施設数)と「体制」、「運転管理」、「保全管理」の各区分\n(例：「体制」の区分；「有人」、「無人」)の該当施設数を回答してください。"]
[]
[]
[null,"事　業",null,null,"施　　設",null,null,null,null,null,null,null,null,null,null,"施設数",null,"体制",null,"運転管理",null,"保全管理",null,null,null,null,null,null,null,null,null,null,null,null,null,null,null,null,null,null,null,null,null,null,null,null,null,null,null,null,null,null,null,null,null,null,null,null,null,null,null,"体制",null,"運転管理",null,"保全管理"]
[null,null,null,null,null,null,null,null,null,null,null,null,null,null,null,null,null,"有人","無人","直営","委託","直営","委託",null,null,null,null,null,null,null,null,null,null,null,null,null,null,null,null,null,null,null,null,null,null,null,null,null,null,null,null,null,null,null,null,null,null,null,null,null,"施設数","有人","無人","直営","委託","直営","委託"]
[null,"上水道",null,null,"浄水場",null,null,null,null,null,null,null,null,null,null,null,null,null,null,null,null,null,null,null,null,null,null,null,null,null,null,null,null,null,null,null,null,null,null,null,null,null,null,null,null,null,null,null,null,null,null,null,null,null,null,null,null,null,null,null,{"$f":"P23","v":0},{"$f":"R23","v":0},{"$f":"S23","v":0},0,0,0,0]
[null,null,null,null,"ポンプ場",null,null,null,null,null,null,null,null,null,null,null,null,null,null,null,null,null,null,null,null,null,null,null,null,null,null,null,null,null,null,null,null,null,null,null,null,null,null,null,null,null,null,null,null,null,null,null,null,null,null,null,null,null,null,null,{"$f":"P24","v":0},{"$f":"R24","v":0},0,0,0,0,0]
[null,null,null,null,"給水所",null,null,null,null,null,null,null,null,null,null,null,null,null,null,null,null,null,null,null,null,null,null,null,null,null,null,null,null,null,null,null,null,null,null,null,null,null,null,null,null,null,null,null,null,null,null,null,null,null,null,null,null,null,null,null,0,0,0,0,0,0,0]
[null,null,null,null,"管理センター",null,null,null,null,null,null,null,null,null,null,null,null,null,null,null,null,null,null,null,null,null,null,null,null,null,null,null,null,null,null,null,null,null,null,null,null,null,null,null,null,null,null,null,null,null,null,null,null,null,null,null,null,null,null,null,0,0,0,0,0,0,0]
[null,null,null,null,"その他\n(自由記述)"]
[null,null,null,null,"(                                      )",null,null,null,null,null,null,null,null,null,null,null,null,null,null,null,null,null,null,null,null,null,null,null,null,null,null,null,null,null,null,null,null,null,null,null,null,null,null,null,null,null,null,null,null,{"$f":"E28","v":"(                                      )"},null,null,null,null,null,null,null,null,null,null,{"$f":"P28","v":0},{"$f":"R28","v":0},{"$f":"S28","v":0},0,0,0,0]
[null,null,null,null,"(                          　　　　　　 )",null,null,null,null,null,null,null,null,null,null,null,null,null,null,null,null,null,null,null,null,null,null,null,null,null,null,null,null,null,null,null,null,null,null,null,null,null,null,null,null,null,null,null,null,{"$f":"E29","v":"(                          　　　　　　 )"},null,null,null,null,null,null,null,null,null,null,0,{"$f":"R29","v":0},0,0,0,0,0]
[null,null,null,null,"(                                      )",null,null,null,null,null,null,null,null,null,null,null,null,null,null,null,null,null,null,null,null,null,null,null,null,null,null,null,null,null,null,null,null,null,null,null,null,null,null,null,null,null,null,null,null,"(                                      )",null,null,null,null,null,null,null,null,null,null,0,0,0,0,0,0,0]
[null,null,null,null,"(                                      )",null,null,null,null,null,null,null,null,null,null,null,null,null,null,null,null,null,null,null,null,null,null,null,null,null,null,null,null,null,null,null,null,null,null,null,null,null,null,null,null,null,null,null,null,"(                                      )",null,null,null,null,null,null,null,null,null,null,0,0,0,0,0,0,0]
[null,null,null,null,"(            　                        )",null,null,null,null,null,null,null,null,null,null,null,null,null,null,null,null,null,null,null,null,null,null,null,null,null,null,null,null,null,null,null,null,null,null,null,null,null,null,null,null,null,null,null,null,"(            　                        )",null,null,null,null,null,null,null,null,null,null,0,0,0,0,0,0,0]
[null,"下水道",null,null,"処理場(分流)",null,null,null,null,null,null,null,null,null,null,null,null,null,null,null,null,null,null,null,null,null,null,null,null,null,null,null,null,null,null,null,null,null,null,null,null,null,null,null,null,null,null,null,null,null,null,null,null,null,null,null,null,null,null,null,0,0,0,0,0,0,0]
[null,null,null,null,"処理場(合流)",null,null,null,null,null,null,null,null,null,null,null,null,null,null,null,null,null,null,null,null,null,null,null,null,null,null,null,null,null,null,null,null,null,null,null,null,null,null,null,null,null,null,null,null,null,null,null,null,null,null,null,null,null,null,null,0,0,0,0,0,0,0]
[null,null,null,null,"汚水ポンプ場(汚水＋雨水も含む)",null,null,null,null,null,null,null,null,null,null,null,null,null,null,null,null,null,null,null,null,null,null,null,null,null,null,null,null,null,null,null,null,null,null,null,null,null,null,null,null,null,null,null,null,null,null,null,null,null,null,null,null,null,null,null,0,0,0,0,0,0,0]
[null,null,null,null,"雨水ポンプ場",null,null,null,null,null,null,null,null,null,null,null,null,null,null,null,null,null,null,null,null,null,null,null,null,null,null,null,null,null,null,null,null,null,null,null,null,null,null,null,null,null,null,null,null,null,null,null,null,null,null,null,null,null,null,null,0,0,0,0,0,0,0]
[null,null,null,null,"汚泥処理施設",null,null,null,null,null,null,null,null,null,null,null,null,null,null,null,null,null,null,null,null,null,null,null,null,null,null,null,null,null,null,null,null,null,null,null,null,null,null,null,null,null,null,null,null,null,null,null,null,null,null,null,null,null,null,null,0,0,0,0,0,0,0]
[null,null,null,null,"その他\n(自由記述)"]
[null,null,null,null,"(                   　　　              )",null,null,null,null,null,null,null,null,null,null,null,null,null,null,null,null,null,null,null,null,null,null,null,null,null,null,null,null,null,null,null,null,null,null,null,null,null,null,null,null,null,null,null,null,{"$f":"E39","v":"(                   　　　              )"},null,null,null,null,null,null,null,null,null,null,0,0,0,0,0,0,0]
[null,null,null,null,"(              　　 　                  )",null,null,null,null,null,null,null,null,null,null,null,null,null,null,null,null,null,null,null,null,null,null,null,null,null,null,null,null,null,null,null,null,null,null,null,null,null,null,null,null,null,null,null,null,{"$f":"E40","v":"(              　　 　                  )"},null,null,null,null,null,null,null,null,null,null,0,0,0,0,0,0,0]
[null,null,null,null,"(              　　　　                 )",null,null,null,null,null,null,null,null,null,null,null,null,null,null,null,null,null,null,null,null,null,null,null,null,null,null,null,null,null,null,null,null,null,null,null,null,null,null,null,null,null,null,null,null,{"$f":"E41","v":"(              　　　　                 )"},null,null,null,null,null,null,null,null,null,null,{"$f":"P41","v":0},0,0,0,0,0,0]
[null,null,null,null,"(              　　　　                 )",null,null,null,null,null,null,null,null,null,null,null,null,null,null,null,null,null,null,null,null,null,null,null,null,null,null,null,null,null,null,null,null,null,null,null,null,null,null,null,null,null,null,null,null,{"$f":"E42","v":"(              　　　　                 )"},null,null,null,null,null,null,null,null,null,null,{"$f":"P42","v":0},0,0,0,0,0,0]
[null,null,null,null,"(              　　　　                 )",null,null,null,null,null,null,null,null,null,null,null,null,null,null,null,null,null,null,null,null,null,null,null,null,null,null,null,null,null,null,null,null,null,null,null,null,null,null,null,null,null,null,null,null,{"$f":"E43","v":"(              　　　　                 )"},null,null,null,null,null,null,null,null,null,null,{"$f":"P43","v":0},0,0,0,0,0,0]
[]
["Ｑ３.浄水場及び処理場の現有施設能力はどの程度ですか。全量と上位３か所を回答して下さい。"]
[]
[null,"全量：",null,null,null,null,null,null,null,null,null,null,null,"㎥/日",null,null,null,null,null,null,null,null,null,null,null,null,null,null,null,null,null,null,null,null,null,null,null,null,null,null,null,null,null,null,null,null,null,null,null,{"$f":"E47","v":0}]
[]
[null,"上位３ヵ所：",null,null,null,null,null,null,null,null,null,null,null,"㎥/日",null,null,null,null,null,null,null,null,null,null,null,null,null,null,null,null,null,null,null,null,null,null,null,null,null,null,null,null,null,null,null,null,null,null,null,{"$f":"E49","v":0}]
[]
[null,"：",null,null,null,null,null,null,null,null,null,null,null,"㎥/日",null,null,null,null,null,null,null,null,null,null,null,null,null,null,null,null,null,null,null,null,null,null,null,null,null,null,null,null,null,null,null,null,null,null,null,{"$f":"E51","v":0}]
[]
[null,"：",null,null,null,null,null,null,null,null,null,null,null,"㎥/日",null,null,null,null,null,null,null,null,null,null,null,null,null,null,null,null,null,null,null,null,null,null,null,null,null,null,null,null,null,null,null,null,null,null,null,{"$f":"E53","v":0}]
[]
["Ｑ４.緊急体制はどのような時に発令しますか。選択してください。(複数回答可)"]
[null,null,"①災害発生",null,null,null,null,null,null,null,null,null,null,null,null,null,null,null,null,null,null,null,null,null,null,null,null,null,null,null,null,null,null,null,null,null,null,null,null,null,null,null,null,null,null,null,null,null,false,{"$f":"N(AW56)","v":0}]
[null,null,"②有害物質混入・水処理の悪化",null,null,null,null,null,null,null,null,null,null,null,null,null,null,null,null,null,null,null,null,null,null,null,null,null,null,null,null,null,null,null,null,null,null,null,null,null,null,null,null,null,null,null,null,null,false,0]
[null,null,"③台風襲来・大雨・雷警報、寒波襲来",null,null,null,null,null,null,null,null,null,null,null,null,null,null,null,null,null,null,null,null,null,null,null,null,null,null,null,null,null,null,null,null,null,null,null,null,null,null,null,null,null,null,null,null,null,false,0]
[null,null,"④セキュリティに関する問題(不正アクセス、情報漏洩、ウィルス混入)",null,null,null,null,null,null,null,null,null,null,null,null,null,null,null,null,null,null,null,null,null,null,null,null,null,null,null,null,null,null,null,null,null,null,null,null,null,null,null,null,null,null,null,null,null,false,0]
[null,null,"⑤重要設備の故障",null,null,null,null,null,null,null,null,null,null,null,null,null,null,null,null,null,null,null,null,null,null,null,null,null,null,null,null,null,null,null,null,null,null,null,null,null,null,null,null,null,null,null,null,null,false,0]
[null,null,"⑥その他(自由記述)",null,null,null,null,null,null,null,null,null,null,null,null,null,null,null,null,null,null,null,null,null,null,null,null,null,null,null,null,null,null,null,null,null,null,null,null,null,null,null,null,null,null,null,null,null,false,0]
[null,null,null,null,null,null,null,null,null,null,null,null,null,null,null,null,null,null,null,null,null,null,null,null,null,null,null,null,null,null,null,null,null,null,null,null,null,null,null,null,null,null,null,null,null,null,null,null,null,"(自由記述)"]

{"sheet":"1_広域化・共有化","index":3,"n_rows":138,"n_cols":51,"rows_kept":138,"cut":false,"hidden":false,"merged":[[75,0,76,22],[0,0,0,22],[7,2,8,22],[9,2,10,22],[30,0,31,22],[37,0,38,22],[57,11,57,14],[57,17,57,18],[58,11,58,18],[60,11,60,18],[61,11,61,18],[63,11,63,18],[64,11,64,18]]}
["【１．広域化・共有化についてのヒアリング項目】"]
[]
["1-1.現在および今後想定される課題を選択してください。（複数回答可）"]
[null,null,"①施設の改築更新（施設や管路の耐震化、施設の建設等）",null,null,null,null,null,null,null,null,null,null,null,null,null,null,null,null,null,null,null,null,null,null,null,null,null,null,null,null,null,null,null,null,null,null,null,null,null,null,null,null,null,null,null,null,null,false,{"$f":"N(AW4)","v":0}]
[null,null,"②施設の維持・保全（施設や管路の修繕、維持管理、施設機能の維持等）",null,null,null,null,null,null,null,null,null,null,null,null,null,null,null,null,null,null,null,null,null,null,null,null,null,null,null,null,null,null,null,null,null,null,null,null,null,null,null,null,null,null,null,null,null,false,{"$f":"N(AW5)","v":0}]
[null,null,"③経営や財政（施設整備に要する資金不足、財政の赤字等)",null,null,null,null,null,null,null,null,null,null,null,null,null,null,null,null,null,null,null,null,null,null,null,null,null,null,null,null,null,null,null,null,null,null,null,null,null,null,null,null,null,null,null,null,null,false,0]
[null,null,"④組織や職員（職員数の不足、職員の経験不足、組織体制、人材育成等）",null,null,null,null,null,null,null,null,null,null,null,null,null,null,null,null,null,null,null,null,null,null,null,null,null,null,null,null,null,null,null,null,null,null,null,null,null,null,null,null,null,null,null,null,null,false,0]
[null,null,"⑤水質（原水水質の悪化、水質基準への対応、配水管網内での水質劣化等）、流入下水\n（危険物・毒物等流入等）、下水排出基準への対応（流入水と処理後の放流水への規制）",null,null,null,null,null,null,null,null,null,null,null,null,null,null,null,null,null,null,null,null,null,null,null,null,null,null,null,null,null,null,null,null,null,null,null,null,null,null,null,null,null,null,null,null,null,false,0]
[]
[null,null,"⑥非常時体制の整備（バックアップ施設、予備機、事故･災害時の行動指針やマニュアル整備、相互応援協定締結等）、豪雨時・災害時対応（幹線水位、放流先の河川水位等）",null,null,null,null,null,null,null,null,null,null,null,null,null,null,null,null,null,null,null,null,null,null,null,null,null,null,null,null,null,null,null,null,null,null,null,null,null,null,null,null,null,null,null,null,null,false,0]
[]
[null,null,"⑦情報セキュリティ対策 ",null,null,null,null,null,null,null,null,null,null,null,null,null,null,null,null,null,null,null,null,null,null,null,null,null,null,null,null,null,null,null,null,null,null,null,null,null,null,null,null,null,null,null,null,null,false,0]
[null,null,"⑧その他",null,null,null,null,null,null,null,null,null,null,null,null,null,null,null,null,null,null,null,null,null,null,null,null,null,null,null,null,null,null,null,null,null,null,null,null,null,null,null,null,null,null,null,null,null,false,0]
[null,null,null,null,null,null,null,null,null,null,null,null,null,null,null,null,null,null,null,null,null,null,null,null,null,null,null,null,null,null,null,null,null,null,null,null,null,null,null,null,null,null,null,null,null,null,null,null,null,"(自由記述)"]
[]
[null,null,"⑨特に課題はない",null,null,null,null,null,null,null,null,null,null,null,null,null,null,null,null,null,null,null,null,null,null,null,null,null,null,null,null,null,null,null,null,null,null,null,null,null,null,null,null,null,null,null,null,null,false,0]
[]
["1-2.  1-1で選択した課題に対して想定される解決策を選択してください。（複数回答可）"]
[null,null,"①施設等の効率的な更新（統廃合）",null,null,null,null,null,null,null,null,null,null,null,null,null,null,null,null,null,null,null,null,null,null,null,null,null,null,null,null,null,null,null,null,null,null,null,null,null,null,null,null,null,null,null,null,null,false,0]
[null,null,"②施設等の効率的な維持管理",null,null,null,null,null,null,null,null,null,null,null,null,null,null,null,null,null,null,null,null,null,null,null,null,null,null,null,null,null,null,null,null,null,null,null,null,null,null,null,null,null,null,null,null,null,false,0]
[null,null,"③人材の確保",null,null,null,null,null,null,null,null,null,null,null,null,null,null,null,null,null,null,null,null,null,null,null,null,null,null,null,null,null,null,null,null,null,null,null,null,null,null,null,null,null,null,null,null,null,false,0]
[null,null,"④管理体制強化・緊急時の体制強化",null,null,null,null,null,null,null,null,null,null,null,null,null,null,null,null,null,null,null,null,null,null,null,null,null,null,null,null,null,null,null,null,null,null,null,null,null,null,null,null,null,null,null,null,null,false,0]
[null,null,"⑤水源の確保",null,null,null,null,null,null,null,null,null,null,null,null,null,null,null,null,null,null,null,null,null,null,null,null,null,null,null,null,null,null,null,null,null,null,null,null,null,null,null,null,null,null,null,null,null,false,0]
[null,null,"⑥財源や給水及び処理人口の確保",null,null,null,null,null,null,null,null,null,null,null,null,null,null,null,null,null,null,null,null,null,null,null,null,null,null,null,null,null,null,null,null,null,null,null,null,null,null,null,null,null,null,null,null,null,false,0]
[null,null,"⑦料金格差の是正",null,null,null,null,null,null,null,null,null,null,null,null,null,null,null,null,null,null,null,null,null,null,null,null,null,null,null,null,null,null,null,null,null,null,null,null,null,null,null,null,null,null,null,null,null,false,0]
[null,null,"⑧災害対応・危機管理能力の向上",null,null,null,null,null,null,null,null,null,null,null,null,null,null,null,null,null,null,null,null,null,null,null,null,null,null,null,null,null,null,null,null,null,null,null,null,null,null,null,null,null,null,null,null,null,false,0]
[null,null,"⑨その他",null,null,null,null,null,null,null,null,null,null,null,null,null,null,null,null,null,null,null,null,null,null,null,null,null,null,null,null,null,null,null,null,null,null,null,null,null,null,null,null,null,null,null,null,null,false,0]
[null,null,null,null,null,null,null,null,null,null,null,null,null,null,null,null,null,null,null,null,null,null,null,null,null,null,null,null,null,null,null,null,null,null,null,null,null,null,null,null,null,null,null,null,null,null,null,null,null,"(自由記述)"]
[]
[]
["1-3.上下水道事業の課題に対する対策手段の一つである広域化・共同化の状況を選択してください。\n(なお、広域化・共同化とは市町村の区域や処理の区域を超えた広域的な連携を示すものとします。)"]
[]
[null,null,"①広域化・共同化を行った、広域化・共同化を進めている",null,null,null,null,null,null,null,null,null,null,null,null,null,null,null,null,null,null,null,null,null,null,null,null,null,null,null,null,null,null,null,null,null,null,null,null,null,null,null,null,null,null,null,null,null,null,0]
[null,null,"②広域化・共同化を検討している"]
[null,null,"③広域化・共同化は今後必要と考えているが具体的には未実施"]
[null,null,"④広域化・共同化を行う予定はない（現状では不要）"]
[]
["1-4.（1-3で④と回答した場合）広域化・共同化が必要ないと考える理由を選択してください。\n(複数回答可)"]
[]
[null,null,"①現状で問題ない",null,null,null,null,null,null,null,null,null,null,null,null,null,null,null,null,null,null,null,null,null,null,null,null,null,null,null,null,null,null,null,null,null,null,null,null,null,null,null,null,null,null,null,null,null,false,0]
[null,null,"②必要性について判断できない、または判断する立場にない",null,null,null,null,null,null,null,null,null,null,null,null,null,null,null,null,null,null,null,null,null,null,null,null,null,null,null,null,null,null,null,null,null,null,null,null,null,null,null,null,null,null,null,null,null,false,0]
[null,null,"③進め方がわからない",null,null,null,null,null,null,null,null,null,null,null,null,null,null,null,null,null,null,null,null,null,null,null,null,null,null,null,null,null,null,null,null,null,null,null,null,null,null,null,null,null,null,null,null,null,false,0]
[null,null,"④人手が足りない",null,null,null,null,null,null,null,null,null,null,null,null,null,null,null,null,null,null,null,null,null,null,null,null,null,null,null,null,null,null,null,null,null,null,null,null,null,null,null,null,null,null,null,null,null,false,0]
[null,null,"⑤共同化の相手が見当たらない",null,null,null,null,null,null,null,null,null,null,null,null,null,null,null,null,null,null,null,null,null,null,null,null,null,null,null,null,null,null,null,null,null,null,null,null,null,null,null,null,null,null,null,null,null,false,0]
[null,null,"⑥その他",null,null,null,null,null,null,null,null,null,null,null,null,null,null,null,null,null,null,null,null,null,null,null,null,null,null,null,null,null,null,null,null,null,null,null,null,null,null,null,null,null,null,null,null,null,false,0]
[null,null,null,null,null,null,null,null,null,null,null,null,null,null,null,null,null,null,null,null,null,null,null,null,null,null,null,null,null,null,null,null,null,null,null,null,null,null,null,null,null,null,null,null,null,null,null,null,null,"(自由記述)"]
[]
[]
["1-5. (1-3で①を回答した場合）広域化・共同化の連携形態を選択してください。"]
[null,null,"①事業統合（水平統合）",null,null,null,null,null,null,null,null,null,null,null,null,null,null,null,null,null,null,null,null,null,null,null,null,null,null,null,null,null,null,null,null,null,null,null,null,null,null,null,null,null,null,null,null,null,null,0]
[null,null,"②事業統合（垂直統合）"]
[null,null,"③施設の共同化"]
[null,null,"④委託等の活用による一体化"]
[null,null,"⑤その他"]
[null,null,null,null,null,null,null,null,null,null,null,null,null,null,null,null,null,null,null,null,null,null,null,null,null,null,null,null,null,null,null,null,null,null,null,null,null,null,null,null,null,null,null,null,null,null,null,null,null,"(自由記述)"]
[]
[null,"1-5-1.連携時期、市町村数、連携前後の人口・施設数を回答してください。"]
[null,"連携開始時期： ",null,null,null,null,null,null,null,"西暦",null,null,null,null,null,"年",null,null,null,"月",null,null,null,null,null,null,null,null,null,null,null,null,null,null,null,null,null,null,null,null,null,null,null,null,null,null,null,null,null,{"$f":"L58","v":0},{"$f":"R58","v":0}]
[null,"市町村数：　　　　",null,null,null,null,null,null,null,null,null,null,null,null,null,null,null,null,null,null,null,null,null,null,null,null,null,null,null,null,null,null,null,null,null,null,null,null,null,null,null,null,null,null,null,null,null,null,null,{"$f":"L59","v":0}]
[]
[null,"給水人口・計画処理人口(統合前)：",null,null,null,null,null,null,null,null,null,null,null,null,null,null,null,null,null,"人",null,null,null,null,null,null,null,null,null,null,null,null,null,null,null,null,null,null,null,null,null,null,null,null,null,null,null,null,null,{"$f":"L61","v":0}]
[null,"給水人口・計画処理人口(統合後)：",null,null,null,null,null,null,null,null,null,null,null,null,null,null,null,null,null,"人",null,null,null,null,null,null,null,null,null,null,null,null,null,null,null,null,null,null,null,null,null,null,null,null,null,null,null,null,null,{"$f":"L62","v":0}]
[null,"　(統合後の全体数を記載下さい)"]
[null,"統合前の施設数：",null,null,null,null,null,null,null,null,null,null,null,null,null,null,null,null,null,null,null,null,null,null,null,null,null,null,null,null,null,null,null,null,null,null,null,null,null,null,null,null,null,null,null,null,null,null,null,{"$f":"L64","v":0}]
[null,"統合後の施設数：",null,null,null,null,null,null,null,null,null,null,null,null,null,null,null,null,null,null,null,null,null,null,null,null,null,null,null,null,null,null,null,null,null,null,null,null,null,null,null,null,null,null,null,null,null,null,null,{"$f":"L65","v":0}]
[null,"　(統合後の全体数を記載下さい)"]
["1-6.（1-3.で②を回答した場合）検討中の広域化・共同化の形態を選択してください。（複数回答可）"]
[null,null,"①事業統合（水平統合）",null,null,null,null,null,null,null,null,null,null,null,null,null,null,null,null,null,null,null,null,null,null,null,null,null,null,null,null,null,null,null,null,null,null,null,null,null,null,null,null,null,null,null,null,null,false,0]
[null,null,"②事業統合（垂直統合）",null,null,null,null,null,null,null,null,null,null,null,null,null,null,null,null,null,null,null,null,null,null,null,null,null,null,null,null,null,null,null,null,null,null,null,null,null,null,null,null,null,null,null,null,null,false,0]
[null,null,"③施設の共同化",null,null,null,null,null,null,null,null,null,null,null,null,null,null,null,null,null,null,null,null,null,null,null,null,null,null,null,null,null,null,null,null,null,null,null,null,null,null,null,null,null,null,null,null,null,false,0]
[null,null,"④委託等の活用による一体化",null,null,null,null,null,null,null,null,null,null,null,null,null,null,null,null,null,null,null,null,null,null,null,null,null,null,null,null,null,null,null,null,null,null,null,null,null,null,null,null,null,null,null,null,null,false,0]
[null,null,"⑤その他",null,null,null,null,null,null,null,null,null,null,null,null,null,null,null,null,null,null,null,null,null,null,null,null,null,null,null,null,null,null,null,null,null,null,null,null,null,null,null,null,null,null,null,null,null,false,{"$f":"N(AW72)","v":0}]
[null,null,null,null,null,null,null,null,null,null,null,null,null,null,null,null,null,null,null,null,null,null,null,null,null,null,null,null,null,null,null,null,null,null,null,null,null,null,null,null,null,null,null,null,null,null,null,null,null,"(自由記述)"]
[]
[]
["1-7.（1-3.で①または②を回答した場合）広域化・共同化の効果または期待される効果を選択して\nください。（複数回答可）"]
[]
[null,null,"①施設等の効率的な更新（統廃合）",null,null,null,null,null,null,null,null,null,null,null,null,null,null,null,null,null,null,null,null,null,null,null,null,null,null,null,null,null,null,null,null,null,null,null,null,null,null,null,null,null,null,null,null,null,false,{"$f":"N(AW78)","v":0}]
[null,null,"②施設等の効率的な維持管理",null,null,null,null,null,null,null,null,null,null,null,null,null,null,null,null,null,null,null,null,null,null,null,null,null,null,null,null,null,null,null,null,null,null,null,null,null,null,null,null,null,null,null,null,null,false,0]
[null,null,"③人材の確保",null,null,null,null,null,null,null,null,null,null,null,null,null,null,null,null,null,null,null,null,null,null,null,null,null,null,null,null,null,null,null,null,null,null,null,null,null,null,null,null,null,null,null,null,null,false,0]
[null,null,"④管理体制強化・緊急時の体制強化",null,null,null,null,null,null,null,null,null,null,null,null,null,null,null,null,null,null,null,null,null,null,null,null,null,null,null,null,null,null,null,null,null,null,null,null,null,null,null,null,null,null,null,null,null,false,0]
[null,null,"⑤水源の確保",null,null,null,null,null,null,null,null,null,null,null,null,null,null,null,null,null,null,null,null,null,null,null,null,null,null,null,null,null,null,null,null,null,null,null,null,null,null,null,null,null,null,null,null,null,false,0]
[null,null,"⑥財源や給水及び処理人口の確保",null,null,null,null,null,null,null,null,null,null,null,null,null,null,null,null,null,null,null,null,null,null,null,null,null,null,null,null,null,null,null,null,null,null,null,null,null,null,null,null,null,null,null,null,null,false,0]
[null,null,"⑦料金格差の是正",null,null,null,null,null,null,null,null,null,null,null,null,null,null,null,null,null,null,null,null,null,null,null,null,null,null,null,null,null,null,null,null,null,null,null,null,null,null,null,null,null,null,null,null,null,false,0]
[null,null,"⑧災害対応・危機管理能力の向上",null,null,null,null,null,null,null,null,null,null,null,null,null,null,null,null,null,null,null,null,null,null,null,null,null,null,null,null,null,null,null,null,null,null,null,null,null,null,null,null,null,null,null,null,null,false,0]
[null,null,"⑨その他",null,null,null,null,null,null,null,null,null,null,null,null,null,null,null,null,null,null,null,null,null,null,null,null,null,null,null,null,null,null,null,null,null,null,null,null,null,null,null,null,null,null,null,null,null,false,0]
[null,null,null,null,null,null,null,null,null,null,null,null,null,null,null,null,null,null,null,null,null,null,null,null,null,null,null,null,null,null,null,null,null,null,null,null,null,null,null,null,null,null,null,null,null,null,null,null,null,"(自由記述)"]
[]
[null,"1-7-1.選択された項目について、具体的にどのような効果があったか記載してください。"]
[null,null,null,null,null,null,null,null,null,null,null,null,null,null,null,null,null,null,null,null,null,null,null,null,null,null,null,null,null,null,null,null,null,null,null,null,null,null,null,null,null,null,null,null,null,null,null,null,null,"(自由記述)"]
[]
[]
[]
[]
["1-8.広域化・共同化を進める上での課題を選択してください。（複数回答可）"]
[null,null,"①施設整備水準の格差",null,null,null,null,null,null,null,null,null,null,null,null,null,null,null,null,null,null,null,null,null,null,null,null,null,null,null,null,null,null,null,null,null,null,null,null,null,null,null,null,null,null,null,null,null,false,{"$f":"N(AW96)","v":0}]
[null,null,"②水源・水質の問題",null,null,null,null,null,null,null,null,null,null,null,null,null,null,null,null,null,null,null,null,null,null,null,null,null,null,null,null,null,null,null,null,null,null,null,null,null,null,null,null,null,null,null,null,null,false,0]
[null,null,"③職員の処遇格差",null,null,null,null,null,null,null,null,null,null,null,null,null,null,null,null,null,null,null,null,null,null,null,null,null,null,null,null,null,null,null,null,null,null,null,null,null,null,null,null,null,null,null,null,null,false,0]
[null,null,"④料金格差",null,null,null,null,null,null,null,null,null,null,null,null,null,null,null,null,null,null,null,null,null,null,null,null,null,null,null,null,null,null,null,null,null,null,null,null,null,null,null,null,null,null,null,null,null,false,0]
[null,null,"⑤財政状況の格差",null,null,null,null,null,null,null,null,null,null,null,null,null,null,null,null,null,null,null,null,null,null,null,null,null,null,null,null,null,null,null,null,null,null,null,null,null,null,null,null,null,null,null,null,null,false,0]
[null,null,"⑥各種サービスの格差",null,null,null,null,null,null,null,null,null,null,null,null,null,null,null,null,null,null,null,null,null,null,null,null,null,null,null,null,null,null,null,null,null,null,null,null,null,null,null,null,null,null,null,null,null,false,0]
[null,null,"⑦住民や議会の理解",null,null,null,null,null,null,null,null,null,null,null,null,null,null,null,null,null,null,null,null,null,null,null,null,null,null,null,null,null,null,null,null,null,null,null,null,null,null,null,null,null,null,null,null,null,false,0]
[null,null,"⑧その他",null,null,null,null,null,null,null,null,null,null,null,null,null,null,null,null,null,null,null,null,null,null,null,null,null,null,null,null,null,null,null,null,null,null,null,null,null,null,null,null,null,null,null,null,null,false,0]
[null,null,null,null,null,null,null,null,null,null,null,null,null,null,null,null,null,null,null,null,null,null,null,null,null,null,null,null,null,null,null,null,null,null,null,null,null,null,null,null,null,null,null,null,null,null,null,null,null,"(自由記述)"]
[]
[null,null,"⑨広域化は検討していない",null,null,null,null,null,null,null,null,null,null,null,null,null,null,null,null,null,null,null,null,null,null,null,null,null,null,null,null,null,null,null,null,null,null,null,null,null,null,null,null,null,null,null,null,null,false,{"$f":"N(AW106)","v":0}]
[]
[null,"1-8-1.広域化・共同化に対する御意見を記載してください。"]
[null,null,null,null,null,null,null,null,null,null,null,null,null,null,null,null,null,null,null,null,null,null,null,null,null,null,null,null,null,null,null,null,null,null,null,null,null,null,null,null,null,null,null,null,null,null,null,null,null,"(自由記述)"]
[]
[]
[]
[]
["1-9.広域化・共同化を行った、または進めている中で発生した課題を記載してください。"]
[null,null,null,null,null,null,null,null,null,null,null,null,null,null,null,null,null,null,null,null,null,null,null,null,null,null,null,null,null,null,null,null,null,null,null,null,null,null,null,null,null,null,null,null,null,null,null,null,null,"(自由記述)"]
[]
[]
[]
[]
[]
[]
["【施設・設備】"]
["1-10.施設等の運転管理に対する委託の導入状況を選択してください。"]
[null,null,"①直営",null,null,null,null,null,null,null,null,null,null,null,null,null,null,null,null,null,null,null,null,null,null,null,null,null,null,null,null,null,null,null,null,null,null,null,null,null,null,null,null,null,null,null,null,null,null,0]
[null,null,"②概ね直営（一部委託）"]
[null,null,"③概ね委託（一部直営）"]
[null,null,"④委託（包括、PPP等）"]
[null,null,"⑤その他"]
[null,null,null,null,null,null,null,null,null,null,null,null,null,null,null,null,null,null,null,null,null,null,null,null,null,null,null,null,null,null,null,null,null,null,null,null,null,null,null,null,null,null,null,null,null,null,null,null,null,"(自由記述)"]
[]
[]
["1-11.施設等の保全管理に対する委託の導入状況を選択してください。"]
[null,null,"①直営",null,null,null,null,null,null,null,null,null,null,null,null,null,null,null,null,null,null,null,null,null,null,null,null,null,null,null,null,null,null,null,null,null,null,null,null,null,null,null,null,null,null,null,null,null,null,0]
[null,null,"②概ね直営（一部委託）"]
[null,null,"③概ね委託（一部直営）"]
[null,null,"④委託（包括、PPP等）"]
[null,null,"⑤その他"]
[null,null,null,null,null,null,null,null,null,null,null,null,null,null,null,null,null,null,null,null,null,null,null,null,null,null,null,null,null,null,null,null,null,null,null,null,null,null,null,null,null,null,null,null,null,null,null,null,null,"(自由記述)"]

{"sheet":"2.3_現状の監視制御ｼｽﾃﾑ","index":4,"n_rows":4123,"n_cols":52,"rows_kept":4123,"cut":false,"hidden":false,"merged":[[141,17,141,19],[72,0,72,22],[112,0,112,22],[118,0,118,22],[76,1,77,22],[81,1,82,22],[86,1,87,22],[103,0,104,22],[93,3,93,16],[98,3,98,16],[125,5,125,12],[134,0,135,22],[145,17,145,19],[145,20,145,21],[144,20,144,21],[142,17,142,19],[143,17,143,19],[142,20,142,21],[143,20,143,21],[203,2,204,21],[192,0,193,22],[146,0,146,22],[173,0,173,22],[179,0,179,22],[186,0,186,22],[166,0,167,22],[0,0,0,22],[15,0,15,22],[17,0,17,22],[33,0,33,22],[42,0,42,22],[2,0,3,22],[9,0,10,22],[6,0,7,22],[18,12,18,15],[13,0,13,22],[19,0,20,22],[51,0,51,22],[56,0,56,22],[91,0,91,22],[100,0,100,22],[144,17,144,19],[140,20,140,21],[141,20,141,21],[136,20,136,21],[137,20,137,21],[138,20,138,21],[137,17,137,19],[138,17,138,19],[139,20,139,21],[136,17,136,19],[63,2,63,22],[139,17,139,19],[237,0,238,22],[295,2,296,22],[95,0,96,22],[124,0,124,22],[279,0,280,22],[287,0,288,22],[262,0,262,22],[272,0,272,22],[222,0,222,22],[229,0,229,22],[243,0,243,22],[251,0,251,22],[199,0,199,22],[206,0,206,22],[211,0,211,22],[216,0,216,22]]}
["【２.監視制御システムの導入状況についてのヒアリング項目】"]
[]
["2-1.広域化・共同化のための監視制御システムを導入していますか。\n(冒頭の用語に記載されている通り、広域化・共同化とは、市町村の区域や下水処理の区域を超えた広域的な連携を示すものとします。)"]
[]
[null,null,"①はい",null,null,null,null,null,null,null,null,null,null,null,null,null,null,null,null,null,null,null,null,null,null,null,null,null,null,null,null,null,null,null,null,null,null,null,null,null,null,null,null,null,null,null,null,null,null,0]
[null,null,"②いいえ"]
["「①はい」と回答した方は\n【３.現状の監視制御システムについてのヒアリング項目】に進んでください。"]
[]
[]
["2-2.(2.1で「②いいえ」と回答した場合）\n広域化・共同化に限らず、場外を監視するためのシステムを導入していますか。"]
[]
[null,null,"①はい",null,null,null,null,null,null,null,null,null,null,null,null,null,null,null,null,null,null,null,null,null,null,null,null,null,null,null,null,null,null,null,null,null,null,null,null,null,null,null,null,null,null,null,null,null,null,0]
[null,null,"②いいえ"]
["2-1.2-2.で「②いいえ」と回答した方は4_ネットワークの設問シートに進んでください。"]
[]
["【３.現状の監視制御システムについてのヒアリング項目】"]
[]
["3-1.導入している監視制御システムの、運用開始時期を回答してください。"]
[null,null,null,null,"運用開始時期：",null,null,null,null,null,"西暦",null,null,null,null,null,"年",null,null,null,null,null,null,null,null,null,null,null,null,null,null,null,null,null,null,null,null,null,null,null,null,null,null,null,null,null,null,null,null,{"$f":"M19","v":0}]
["3-2.現在の監視制御システムで、主に利用されている業務種別を選択してください。\n（複数回答可）"]
[]
[null,null,"①プラントの維持管理業務（下記②、③を含む）",null,null,null,null,null,null,null,null,null,null,null,null,null,null,null,null,null,null,null,null,null,null,null,null,null,null,null,null,null,null,null,null,null,null,null,null,null,null,null,null,null,null,null,null,null,false,{"$f":"N(AW22)","v":0}]
[null,null,"②プラントの運転管理業務",null,null,null,null,null,null,null,null,null,null,null,null,null,null,null,null,null,null,null,null,null,null,null,null,null,null,null,null,null,null,null,null,null,null,null,null,null,null,null,null,null,null,null,null,null,false,{"$f":"N(AW23)","v":0}]
[null,null,"③プラントの保全管理業務",null,null,null,null,null,null,null,null,null,null,null,null,null,null,null,null,null,null,null,null,null,null,null,null,null,null,null,null,null,null,null,null,null,null,null,null,null,null,null,null,null,null,null,null,null,false,0]
[null,null,"④指示事項の伝達業務",null,null,null,null,null,null,null,null,null,null,null,null,null,null,null,null,null,null,null,null,null,null,null,null,null,null,null,null,null,null,null,null,null,null,null,null,null,null,null,null,null,null,null,null,null,false,0]
[null,null,"⑤書類の検索業務",null,null,null,null,null,null,null,null,null,null,null,null,null,null,null,null,null,null,null,null,null,null,null,null,null,null,null,null,null,null,null,null,null,null,null,null,null,null,null,null,null,null,null,null,null,false,0]
[null,null,"⑥報告業務",null,null,null,null,null,null,null,null,null,null,null,null,null,null,null,null,null,null,null,null,null,null,null,null,null,null,null,null,null,null,null,null,null,null,null,null,null,null,null,null,null,null,null,null,null,false,0]
[null,null,"⑦会議、連絡業務",null,null,null,null,null,null,null,null,null,null,null,null,null,null,null,null,null,null,null,null,null,null,null,null,null,null,null,null,null,null,null,null,null,null,null,null,null,null,null,null,null,null,null,null,null,false,0]
[null,null,"⑧情報の収集、公開業務",null,null,null,null,null,null,null,null,null,null,null,null,null,null,null,null,null,null,null,null,null,null,null,null,null,null,null,null,null,null,null,null,null,null,null,null,null,null,null,null,null,null,null,null,null,false,0]
[null,null,"⑨決済業務",null,null,null,null,null,null,null,null,null,null,null,null,null,null,null,null,null,null,null,null,null,null,null,null,null,null,null,null,null,null,null,null,null,null,null,null,null,null,null,null,null,null,null,null,null,false,0]
[null,null,"⑩その他",null,null,null,null,null,null,null,null,null,null,null,null,null,null,null,null,null,null,null,null,null,null,null,null,null,null,null,null,null,null,null,null,null,null,null,null,null,null,null,null,null,null,null,null,null,false,0]
[null,null,null,null,null,null,null,null,null,null,null,null,null,null,null,null,null,null,null,null,null,null,null,null,null,null,null,null,null,null,null,null,null,null,null,null,null,null,null,null,null,null,null,null,null,null,null,null,null,"(自由記述)"]
[]
["3-3.現在の監視制御システムの、主な導入目的を選択してください。（複数回答可）"]
[null,null,"①業務の効率化・省力化",null,null,null,null,null,null,null,null,null,null,null,null,null,null,null,null,null,null,null,null,null,null,null,null,null,null,null,null,null,null,null,null,null,null,null,null,null,null,null,null,null,null,null,null,null,false,{"$f":"N(AW35)","v":0}]
[null,null,"②業務の正確さ・安全性の向上",null,null,null,null,null,null,null,null,null,null,null,null,null,null,null,null,null,null,null,null,null,null,null,null,null,null,null,null,null,null,null,null,null,null,null,null,null,null,null,null,null,null,null,null,null,false,{"$f":"N(AW36)","v":0}]
[null,null,"③住民サービスの向上",null,null,null,null,null,null,null,null,null,null,null,null,null,null,null,null,null,null,null,null,null,null,null,null,null,null,null,null,null,null,null,null,null,null,null,null,null,null,null,null,null,null,null,null,null,false,0]
[null,null,"④情報基盤整備",null,null,null,null,null,null,null,null,null,null,null,null,null,null,null,null,null,null,null,null,null,null,null,null,null,null,null,null,null,null,null,null,null,null,null,null,null,null,null,null,null,null,null,null,null,false,0]
[null,null,"⑤労働環境の向上",null,null,null,null,null,null,null,null,null,null,null,null,null,null,null,null,null,null,null,null,null,null,null,null,null,null,null,null,null,null,null,null,null,null,null,null,null,null,null,null,null,null,null,null,null,false,0]
[null,null,"⑥その他",null,null,null,null,null,null,null,null,null,null,null,null,null,null,null,null,null,null,null,null,null,null,null,null,null,null,null,null,null,null,null,null,null,null,null,null,null,null,null,null,null,null,null,null,null,false,0]
[null,null,null,null,null,null,null,null,null,null,null,null,null,null,null,null,null,null,null,null,null,null,null,null,null,null,null,null,null,null,null,null,null,null,null,null,null,null,null,null,null,null,null,null,null,null,null,null,null,"(自由記述)"]
[]
["3-4.現在の監視制御システムの、主な効果を選択してください。（複数回答可）"]
[null,null,"①業務の効率化・省力化",null,null,null,null,null,null,null,null,null,null,null,null,null,null,null,null,null,null,null,null,null,null,null,null,null,null,null,null,null,null,null,null,null,null,null,null,null,null,null,null,null,null,null,null,null,false,{"$f":"N(AW44)","v":0}]
[null,null,"②業務の正確さ・安全性の向上",null,null,null,null,null,null,null,null,null,null,null,null,null,null,null,null,null,null,null,null,null,null,null,null,null,null,null,null,null,null,null,null,null,null,null,null,null,null,null,null,null,null,null,null,null,false,{"$f":"N(AW45)","v":0}]
[null,null,"③住民サービスの向上",null,null,null,null,null,null,null,null,null,null,null,null,null,null,null,null,null,null,null,null,null,null,null,null,null,null,null,null,null,null,null,null,null,null,null,null,null,null,null,null,null,null,null,null,null,false,0]
[null,null,"④労働環境の向上",null,null,null,null,null,null,null,null,null,null,null,null,null,null,null,null,null,null,null,null,null,null,null,null,null,null,null,null,null,null,null,null,null,null,null,null,null,null,null,null,null,null,null,null,null,false,0]
[null,null,"⑤あまり効果が無かった",null,null,null,null,null,null,null,null,null,null,null,null,null,null,null,null,null,null,null,null,null,null,null,null,null,null,null,null,null,null,null,null,null,null,null,null,null,null,null,null,null,null,null,null,null,false,0]
[null,null,"⑥その他",null,null,null,null,null,null,null,null,null,null,null,null,null,null,null,null,null,null,null,null,null,null,null,null,null,null,null,null,null,null,null,null,null,null,null,null,null,null,null,null,null,null,null,null,null,false,0]
[null,null,null,null,null,null,null,null,null,null,null,null,null,null,null,null,null,null,null,null,null,null,null,null,null,null,null,null,null,null,null,null,null,null,null,null,null,null,null,null,null,null,null,null,null,null,null,null,null,"(自由記述)"]
[]
["3-5.現在の監視制御システムの評価について、選択してください。"]
[null,null,"①非常に良い",null,null,null,null,null,null,null,null,null,null,null,null,null,null,null,null,null,null,null,null,null,null,null,null,null,null,null,null,null,null,null,null,null,null,null,null,null,null,null,null,null,null,null,null,null,null,0]
[null,null,"②良い"]
[null,null,"③普通"]
[null,null,"④不満"]
["3-6.現在の監視制御システムを構築した際の課題を選択してください。（複数回答可）"]
[null,null,"①異なるメーカ間の接続が必要となった",null,null,null,null,null,null,null,null,null,null,null,null,null,null,null,null,null,null,null,null,null,null,null,null,null,null,null,null,null,null,null,null,null,null,null,null,null,null,null,null,null,null,null,null,null,false,{"$f":"N(AW58)","v":0}]
[null,null,"②更新前と比べて、信号点数が大幅に増えた",null,null,null,null,null,null,null,null,null,null,null,null,null,null,null,null,null,null,null,null,null,null,null,null,null,null,null,null,null,null,null,null,null,null,null,null,null,null,null,null,null,null,null,null,null,false,{"$f":"N(AW59)","v":0}]
[null,null,"③更新前と比べて、信号点数が大幅に減った",null,null,null,null,null,null,null,null,null,null,null,null,null,null,null,null,null,null,null,null,null,null,null,null,null,null,null,null,null,null,null,null,null,null,null,null,null,null,null,null,null,null,null,null,null,false,0]
[null,null,"④監視拠点が増えることで、通信回線費用が増えた",null,null,null,null,null,null,null,null,null,null,null,null,null,null,null,null,null,null,null,null,null,null,null,null,null,null,null,null,null,null,null,null,null,null,null,null,null,null,null,null,null,null,null,null,null,false,0]
[null,null,"⑤監視拠点が増えることで、操作権が煩雑になった",null,null,null,null,null,null,null,null,null,null,null,null,null,null,null,null,null,null,null,null,null,null,null,null,null,null,null,null,null,null,null,null,null,null,null,null,null,null,null,null,null,null,null,null,null,false,0]
[null,null,"⑥外部に接続することでセキュリティに不安があった",null,null,null,null,null,null,null,null,null,null,null,null,null,null,null,null,null,null,null,null,null,null,null,null,null,null,null,null,null,null,null,null,null,null,null,null,null,null,null,null,null,null,null,null,null,false,0]
[null,null,"⑦監視以外の機能も同じ監視制御システムに実装したかったが、できなかった\n(例：需要予測機能、台帳機能など)",null,null,null,null,null,null,null,null,null,null,null,null,null,null,null,null,null,null,null,null,null,null,null,null,null,null,null,null,null,null,null,null,null,null,null,null,null,null,null,null,null,null,null,null,null,false,0]
[null,null,null,null,null,null,null,null,null,null,null,null,null,null,null,null,null,null,null,null,null,null,null,null,null,null,null,null,null,null,null,null,null,null,null,null,null,null,null,null,null,null,null,null,null,null,null,null,null,"(実装したい機能を自由記述)"]
[]
[]
[null,null,"⑧事業の統廃合と監視制御システムの更新時期が合わなかった",null,null,null,null,null,null,null,null,null,null,null,null,null,null,null,null,null,null,null,null,null,null,null,null,null,null,null,null,null,null,null,null,null,null,null,null,null,null,null,null,null,null,null,null,null,false,{"$f":"N(AW68)","v":0}]
[null,null,"⑨監視制御システムのメーカが変わることで、操作性が大きく変わった",null,null,null,null,null,null,null,null,null,null,null,null,null,null,null,null,null,null,null,null,null,null,null,null,null,null,null,null,null,null,null,null,null,null,null,null,null,null,null,null,null,null,null,null,null,false,{"$f":"N(AW69)","v":0}]
[null,null,"⑩その他",null,null,null,null,null,null,null,null,null,null,null,null,null,null,null,null,null,null,null,null,null,null,null,null,null,null,null,null,null,null,null,null,null,null,null,null,null,null,null,null,null,null,null,null,null,false,0]
[null,null,null,null,null,null,null,null,null,null,null,null,null,null,null,null,null,null,null,null,null,null,null,null,null,null,null,null,null,null,null,null,null,null,null,null,null,null,null,null,null,null,null,null,null,null,null,null,null,"(自由記述)"]
[]
["3-7.(3-6.の課題・要望)をどのように解決・実現したか具体的に記載してください。"]
[null,null,null,null,null,null,null,null,null,null,null,null,null,null,null,null,null,null,null,null,null,null,null,null,null,null,null,null,null,null,null,null,null,null,null,null,null,null,null,null,null,null,null,null,null,null,null,null,null,"(自由記述)"]
[]
[]
[null,"3-7-1.監視制御システムの維持管理を効率化するにあたっての問題点を記載してください。\n（例：監視制御システムに精通した職員の確保が難しいなど）"]
[]
[null,null,null,null,null,null,null,null,null,null,null,null,null,null,null,null,null,null,null,null,null,null,null,null,null,null,null,null,null,null,null,null,null,null,null,null,null,null,null,null,null,null,null,null,null,null,null,null,null,"(自由記述)"]
[]
[]
[null,"3-7-2.運転管理・維持管理するにあたり、他分野・他設備と情報の共有化ができると便利な項目を記載ください。(例：設備の点検データ、河川情報、近隣自治体の水質データなど)"]
[]
[null,null,null,null,null,null,null,null,null,null,null,null,null,null,null,null,null,null,null,null,null,null,null,null,null,null,null,null,null,null,null,null,null,null,null,null,null,null,null,null,null,null,null,null,null,null,null,null,null,"(自由記述)"]
[]
[]
[null,"3-7-3.その他、電話・インターネット等で入手している情報を記載してください。\n（例：天気予報、降雨データなど）"]
[]
[null,null,null,null,null,null,null,null,null,null,null,null,null,null,null,null,null,null,null,null,null,null,null,null,null,null,null,null,null,null,null,null,null,null,null,null,null,null,null,null,null,null,null,null,null,null,null,null,null,"(自由記述)"]
[]
[]
["3-8.現在の監視制御システムは事業分野の異なる他の事業分野にも利用されていますか。 "]
[null,null,"①はい",null,null,null,null,null,null,null,null,null,null,null,null,null,null,null,null,null,null,null,null,null,null,null,null,null,null,null,null,null,null,null,null,null,null,null,null,null,null,null,null,null,null,null,null,null,null,0]
[null,null,"（",null,null,null,null,null,null,null,null,null,null,null,null,null,null,"分野に利用）",null,null,null,null,null,null,null,null,null,null,null,null,null,null,null,null,null,null,null,null,null,null,null,null,null,null,null,null,null,null,null,{"$f":"D94","v":0}]
[null,null,"②いいえ"]
["3-9.現在の監視制御システムは運転管理以外の業務で使用するシステムと接続（連携）していますか。"]
[]
[null,null,"①はい",null,null,null,null,null,null,null,null,null,null,null,null,null,null,null,null,null,null,null,null,null,null,null,null,null,null,null,null,null,null,null,null,null,null,null,null,null,null,null,null,null,null,null,null,null,null,0]
[null,null,"（",null,null,null,null,null,null,null,null,null,null,null,null,null,null,"システムと接続）",null,null,null,null,null,null,null,null,null,null,null,null,null,null,null,null,null,null,null,null,null,null,null,null,null,null,null,null,null,null,null,{"$f":"D99","v":0}]
[null,null,"②いいえ"]
["3-10.(3-9.で①を回答した場合)接続しているシステムのメーカの同異を選択してください。"]
[null,null,"①同じメーカ同士の接続",null,null,null,null,null,null,null,null,null,null,null,null,null,null,null,null,null,null,null,null,null,null,null,null,null,null,null,null,null,null,null,null,null,null,null,null,null,null,null,null,null,null,null,null,null,null,0]
[null,null,"②異なるメーカ間の接続"]
["3-11.(3-10.で②を回答した場合)異なるメーカのシステムを採用した理由で、最も当てはまるものを選択してください。"]
[]
[null,null,"①会計システムや設備台帳と連携させるため",null,null,null,null,null,null,null,null,null,null,null,null,null,null,null,null,null,null,null,null,null,null,null,null,null,null,null,null,null,null,null,null,null,null,null,null,null,null,null,null,null,null,null,null,null,null,0]
[null,null,"②監視広域化のため（市町村の区域や下水処理の区域を超えた広域的なもの）"]
[null,null,"③監視広域化のため（②以外）"]
[null,null,"④既設システムを最大限活用するため"]
[null,null,"⑤その他"]
[null,null,null,null,null,null,null,null,null,null,null,null,null,null,null,null,null,null,null,null,null,null,null,null,null,null,null,null,null,null,null,null,null,null,null,null,null,null,null,null,null,null,null,null,null,null,null,null,null,"(自由記述)"]
[]
["3-12.現在の監視制御システムで通信しているメディアを選択してください。（複数回答可）"]
[null,null,"①データ（数値、文字データ）",null,null,null,null,null,null,null,null,null,null,null,null,null,null,null,null,null,null,null,null,null,null,null,null,null,null,null,null,null,null,null,null,null,null,null,null,null,null,null,null,null,null,null,null,null,false,{"$f":"N(AW114)","v":0}]
[null,null,"②音声",null,null,null,null,null,null,null,null,null,null,null,null,null,null,null,null,null,null,null,null,null,null,null,null,null,null,null,null,null,null,null,null,null,null,null,null,null,null,null,null,null,null,null,null,null,false,{"$f":"N(AW115)","v":0}]
[null,null,"③画像（動画、静止画）",null,null,null,null,null,null,null,null,null,null,null,null,null,null,null,null,null,null,null,null,null,null,null,null,null,null,null,null,null,null,null,null,null,null,null,null,null,null,null,null,null,null,null,null,null,false,0]
[null,null,"④その他",null,null,null,null,null,null,null,null,null,null,null,null,null,null,null,null,null,null,null,null,null,null,null,null,null,null,null,null,null,null,null,null,null,null,null,null,null,null,null,null,null,null,null,null,null,false,0]
[null,null,null,null,null,null,null,null,null,null,null,null,null,null,null,null,null,null,null,null,null,null,null,null,null,null,null,null,null,null,null,null,null,null,null,null,null,null,null,null,null,null,null,null,null,null,null,null,null,"(自由記述)"]
["3-13.他の拠点との通信で、使用中の回線を選択してください。"]
[null,null,"①通信事業者回線（公衆回線）",null,null,null,null,null,null,null,null,null,null,null,null,null,null,null,null,null,null,null,null,null,null,null,null,null,null,null,null,null,null,null,null,null,null,null,null,null,null,null,null,null,null,null,null,null,null,0]
[null,null,"②通信事業者回線（VPNなど閉域網）"]
[null,null,"③自営で敷設した専用回線"]
[null,null,"④その他"]
[null,null,null,null,null,null,null,null,null,null,null,null,null,null,null,null,null,null,null,null,null,null,null,null,null,null,null,null,null,null,null,null,null,null,null,null,null,null,null,null,null,null,null,null,null,null,null,null,null,"(自由記述)"]
["3-14.月当たりの使用中の回線使用料を記載してください。"]
[null,null,null,null,null,null,null,null,null,null,null,null,null,"円／月",null,null,null,null,null,null,null,null,null,null,null,null,null,null,null,null,null,null,null,null,null,null,null,null,null,null,null,null,null,null,null,null,null,null,null,{"$f":"F126","v":0}]
["3-15.使用回線の選定で重視した点を選択してください。"]
[null,null,"①使用料",null,null,null,null,null,null,null,null,null,null,null,null,null,null,null,null,null,null,null,null,null,null,null,null,null,null,null,null,null,null,null,null,null,null,null,null,null,null,null,null,null,null,null,null,null,null,0]
[null,null,"②通信速度"]
[null,null,"③信頼性・通信品質"]
[null,null,"④ ①～③のバランス"]
[null,null,"⑤その他"]
[null,null,null,null,null,null,null,null,null,null,null,null,null,null,null,null,null,null,null,null,null,null,null,null,null,null,null,null,null,null,null,null,null,null,null,null,null,null,null,null,null,null,null,null,null,null,null,null,null,"(自由記述)"]
[]
["3-16.現在の監視制御システムで使用している機器の種類(複数回答可)を選択し、台数を記載してください。"]
[]
[null,null,"①工業用パソコン（LCD監視装置含む)",null,null,null,null,null,null,null,null,null,null,null,null,null,null,null,null,null,":台",null,null,null,null,null,null,null,null,null,null,null,null,null,null,null,null,null,null,null,null,null,null,null,null,null,null,null,false,{"$f":"N(AW137)","v":0},{"$f":"R137","v":0}]
[null,null,"②汎用パソコン（ノートパソコン含む)",null,null,null,null,null,null,null,null,null,null,null,null,null,null,null,null,null,":台",null,null,null,null,null,null,null,null,null,null,null,null,null,null,null,null,null,null,null,null,null,null,null,null,null,null,null,false,{"$f":"N(AW138)","v":0},{"$f":"R138","v":0}]
[null,null,"③通信装置（自動通報装置等)",null,null,null,null,null,null,null,null,null,null,null,null,null,null,null,null,null,":台",null,null,null,null,null,null,null,null,null,null,null,null,null,null,null,null,null,null,null,null,null,null,null,null,null,null,null,false,0,0]
[null,null,"④モバイル機器（スマートフォン、タブレットPCなど)",null,null,null,null,null,null,null,null,null,null,null,null,null,null,null,null,null,":台",null,null,null,null,null,null,null,null,null,null,null,null,null,null,null,null,null,null,null,null,null,null,null,null,null,null,null,false,0,0]
[null,null,"⑤その他（使用している機器を記入してください)",null,null,null,null,null,null,null,null,null,null,null,null,null,null,null,null,null,null,null,null,null,null,null,null,null,null,null,null,null,null,null,null,null,null,null,null,null,null,null,null,null,null,null,null,null,false,0]
[null,null,null,null,null,null,null,null,null,null,null,null,null,null,null,null,null,null,null,null,":台",null,null,null,null,null,null,null,null,null,null,null,null,null,null,null,null,null,null,null,null,null,null,null,null,null,null,null,null,null,{"$f":"R142","v":0},"(自由記述)"]
[null,null,null,null,null,null,null,null,null,null,null,null,null,null,null,null,null,null,null,null,":台",null,null,null,null,null,null,null,null,null,null,null,null,null,null,null,null,null,null,null,null,null,null,null,null,null,null,null,null,null,{"$f":"R143","v":0},"(自由記述)"]
[null,null,null,null,null,null,null,null,null,null,null,null,null,null,null,null,null,null,null,null,":台",null,null,null,null,null,null,null,null,null,null,null,null,null,null,null,null,null,null,null,null,null,null,null,null,null,null,null,null,null,0,"(自由記述)"]
[null,null,null,null,null,null,null,null,null,null,null,null,null,null,null,null,null,null,null,null,":台",null,null,null,null,null,null,null,null,null,null,null,null,null,null,null,null,null,null,null,null,null,null,null,null,null,null,null,null,null,0,"(自由記述)"]
[null,null,null,null,null,null,null,null,null,null,null,null,null,null,null,null,null,null,null,null,":台",null,null,null,null,null,null,null,null,null,null,null,null,null,null,null,null,null,null,null,null,null,null,null,null,null,null,null,null,null,0,"(自由記述)"]
["3-17.現在の監視制御システムの構成を下記の図より選択してください。(複数回答可)"]
[]
[]
[]
[]
[]
[]
[]
[]
[]
[]
[null,null,"①Web方式を用いた遠方監視(リモートデスクトップ方式を含む)",null,null,null,null,null,null,null,null,null,null,null,null,null,null,null,null,null,null,null,null,null,null,null,null,null,null,null,null,null,null,null,null,null,null,null,null,null,null,null,null,null,null,null,null,null,false,{"$f":"N(AW158)","v":0}]
[null,null,"②クラウド型監視",null,null,null,null,null,null,null,null,null,null,null,null,null,null,null,null,null,null,null,null,null,null,null,null,null,null,null,null,null,null,null,null,null,null,null,null,null,null,null,null,null,null,null,null,null,false,{"$f":"N(AW159)","v":0}]
[null,null,"③オンプレミス型監視制御",null,null,null,null,null,null,null,null,null,null,null,null,null,null,null,null,null,null,null,null,null,null,null,null,null,null,null,null,null,null,null,null,null,null,null,null,null,null,null,null,null,null,null,null,null,false,0]
[null,null,"④オンプレミス型監視制御(複数施設の統合監視)",null,null,null,null,null,null,null,null,null,null,null,null,null,null,null,null,null,null,null,null,null,null,null,null,null,null,null,null,null,null,null,null,null,null,null,null,null,null,null,null,null,null,null,null,null,false,0]
[null,null,"⑤他社の監視制御システムとの接続",null,null,null,null,null,null,null,null,null,null,null,null,null,null,null,null,null,null,null,null,null,null,null,null,null,null,null,null,null,null,null,null,null,null,null,null,null,null,null,null,null,null,null,null,null,false,0]
[null,null,"⑥テレメータを用いた遠方監視",null,null,null,null,null,null,null,null,null,null,null,null,null,null,null,null,null,null,null,null,null,null,null,null,null,null,null,null,null,null,null,null,null,null,null,null,null,null,null,null,null,null,null,null,null,false,0]
[null,null,"⑦その他",null,null,null,null,null,null,null,null,null,null,null,null,null,null,null,null,null,null,null,null,null,null,null,null,null,null,null,null,null,null,null,null,null,null,null,null,null,null,null,null,null,null,null,null,null,false,0]
[null,null,null,null,null,null,null,null,null,null,null,null,null,null,null,null,null,null,null,null,null,null,null,null,null,null,null,null,null,null,null,null,null,null,null,null,null,null,null,null,null,null,null,null,null,null,null,null,null,"(自由記述)"]
[]
["3-18.現在の監視制御システムで、場外施設からの下り操作の実施について選択してください。"]
[]
[null,null,"①実施している",null,null,null,null,null,null,null,null,null,null,null,null,null,null,null,null,null,null,null,null,null,null,null,null,null,null,null,null,null,null,null,null,null,null,null,null,null,null,null,null,null,null,null,null,null,null,0]
[null,null,"②実施していない"]
[null,null,"③その他",null,null,null,null,null,null,null,null,null,null,null,null,null,null,null,null,null,null,null,null,null,null,null,null,null,null,null,null,null,null,null,null,null,null,null,null,null,null,null,null,null,null,null,null,null,null,"(自由記述)"]
[]
[]
["3-19.(3-18.で②を回答した場合)実施していない理由を選択してください。"]
[null,null,"①場外施設から下り操作を必要としない",null,null,null,null,null,null,null,null,null,null,null,null,null,null,null,null,null,null,null,null,null,null,null,null,null,null,null,null,null,null,null,null,null,null,null,null,null,null,null,null,null,null,null,null,null,null,0]
[null,null,"②実施したいが、セキュリティに不安がある"]
[null,null,"③その他",null,null,null,null,null,null,null,null,null,null,null,null,null,null,null,null,null,null,null,null,null,null,null,null,null,null,null,null,null,null,null,null,null,null,null,null,null,null,null,null,null,null,null,null,null,null,"(自由記述)"]
[]
[]
["3-20.現在の監視制御システムの、運用形態を選択してください。"]
[null,null,"①オンプレミス型監視制御システム",null,null,null,null,null,null,null,null,null,null,null,null,null,null,null,null,null,null,null,null,null,null,null,null,null,null,null,null,null,null,null,null,null,null,null,null,null,null,null,null,null,null,null,null,null,null,0]
[null,null,"②クラウド型監視制御システム"]
[null,null,"③オンプレミス型とクラウド型併用監視制御システム"]
[null,null,"④その他",null,null,null,null,null,null,null,null,null,null,null,null,null,null,null,null,null,null,null,null,null,null,null,null,null,null,null,null,null,null,null,null,null,null,null,null,null,null,null,null,null,null,null,null,null,null,"(自由記述)"]
[]
[]
["3-21.(3-20.で②又は③を回答した場合)クラウドを採用された理由を選択してください。"]
[null,null,"①初期構築の費用を抑えられるため",null,null,null,null,null,null,null,null,null,null,null,null,null,null,null,null,null,null,null,null,null,null,null,null,null,null,null,null,null,null,null,null,null,null,null,null,null,null,null,null,null,null,null,null,null,null,0]
[null,null,"②外部からのリモート接続など、ネットワーク接続が容易なため"]
[null,null,"③その他",null,null,null,null,null,null,null,null,null,null,null,null,null,null,null,null,null,null,null,null,null,null,null,null,null,null,null,null,null,null,null,null,null,null,null,null,null,null,null,null,null,null,null,null,null,null,"(自由記述)"]
[]
[]
["3-22.(3-20.で①を回答した場合)オンプレミスを採用した（クラウドを採用しなかった）理由を選択してください。"]
[]
[null,null,"①外部ネットワークからの攻撃を受けにくく、セキュリティ面で優れているため",null,null,null,null,null,null,null,null,null,null,null,null,null,null,null,null,null,null,null,null,null,null,null,null,null,null,null,null,null,null,null,null,null,null,null,null,null,null,null,null,null,null,null,null,null,null,0]
[null,null,"②ネットワークの通信品質に依存せず、安定稼働できるため"]
[null,null,"③その他",null,null,null,null,null,null,null,null,null,null,null,null,null,null,null,null,null,null,null,null,null,null,null,null,null,null,null,null,null,null,null,null,null,null,null,null,null,null,null,null,null,null,null,null,null,null,"(自由記述)"]
[]
[]
["3-23.現在の監視制御システムを、どのように導入したか選択してください。"]
[null,null,"①既存の監視制御システム（オンプレミス等）の機能増設",null,null,null,null,null,null,null,null,null,null,null,null,null,null,null,null,null,null,null,null,null,null,null,null,null,null,null,null,null,null,null,null,null,null,null,null,null,null,null,null,null,null,null,null,null,null,0]
[null,null,"②既存の広域統合システム（クラウド等）の機能増設"]
[null,null,"③広域化・共同化のための監視制御システムを新たに構築"]
[null,null,"④既存の監視制御システム（オンプレミス等）を活用しつつ、新たに広域統合\nシステム（クラウド等）を構築して接続"]
[]
[]
["3-24.計画から施工着手までの所要時間を選択してください。"]
[null,null,"①1年未満",null,null,null,null,null,null,null,null,null,null,null,null,null,null,null,null,null,null,null,null,null,null,null,null,null,null,null,null,null,null,null,null,null,null,null,null,null,null,null,null,null,null,null,null,null,null,0]
[null,null,"②1年～3年未満"]
[null,null,"③3年～5年未満"]
[null,null,"④5年以上"]
["3-25.施工期間を選択してください。"]
[null,null,"①1年未満",null,null,null,null,null,null,null,null,null,null,null,null,null,null,null,null,null,null,null,null,null,null,null,null,null,null,null,null,null,null,null,null,null,null,null,null,null,null,null,null,null,null,null,null,null,null,0]
[null,null,"②1年～3年未満"]
[null,null,"③3年～5年未満"]
[null,null,"④5年以上"]
["3-26.現在の監視制御システムの購入方法を選択してください。"]
[null,null,"①買い取り",null,null,null,null,null,null,null,null,null,null,null,null,null,null,null,null,null,null,null,null,null,null,null,null,null,null,null,null,null,null,null,null,null,null,null,null,null,null,null,null,null,null,null,null,null,null,0]
[null,null,"②リース"]
[null,null,"③その他",null,null,null,null,null,null,null,null,null,null,null,null,null,null,null,null,null,null,null,null,null,null,null,null,null,null,null,null,null,null,null,null,null,null,null,null,null,null,null,null,null,null,null,null,null,null,"(自由記述)"]
[]
[]
["3-27.総構築費用を選択してください。"]
[null,null,"①500万円未満",null,null,null,null,null,null,null,null,null,null,null,null,null,null,null,null,null,null,null,null,null,null,null,null,null,null,null,null,null,null,null,null,null,null,null,null,null,null,null,null,null,null,null,null,null,null,0]
[null,null,"②500万～1,000万円未満"]
[null,null,"③1,000万～5,000万円未満"]
[null,null,"④5,000万～1億円未満"]
[null,null,"⑤1億～5億円未満"]
[null,null,"⑥5億円以上"]
["3-28.現在の監視制御システム構築に携わった関係者を選択してください。(複数回答可)"]
[null,null,"①運転監視に従事する職員",null,null,null,null,null,null,null,null,null,null,null,null,null,null,null,null,null,null,null,null,null,null,null,null,null,null,null,null,null,null,null,null,null,null,null,null,null,null,null,null,null,null,null,null,null,false,{"$f":"N(AW231)","v":0}]
[null,null,"②保全管理（設計を除く）に従事する職員",null,null,null,null,null,null,null,null,null,null,null,null,null,null,null,null,null,null,null,null,null,null,null,null,null,null,null,null,null,null,null,null,null,null,null,null,null,null,null,null,null,null,null,null,null,false,{"$f":"N(AW232)","v":0}]
[null,null,"③設計に従事する職員",null,null,null,null,null,null,null,null,null,null,null,null,null,null,null,null,null,null,null,null,null,null,null,null,null,null,null,null,null,null,null,null,null,null,null,null,null,null,null,null,null,null,null,null,null,false,0]
[null,null,"④整備計画・方針策定に従事する職員",null,null,null,null,null,null,null,null,null,null,null,null,null,null,null,null,null,null,null,null,null,null,null,null,null,null,null,null,null,null,null,null,null,null,null,null,null,null,null,null,null,null,null,null,null,false,0]
[null,null,"⑤予算管理や契約事務に従事する職員",null,null,null,null,null,null,null,null,null,null,null,null,null,null,null,null,null,null,null,null,null,null,null,null,null,null,null,null,null,null,null,null,null,null,null,null,null,null,null,null,null,null,null,null,null,false,0]
[null,null,"⑥その他",null,null,null,null,null,null,null,null,null,null,null,null,null,null,null,null,null,null,null,null,null,null,null,null,null,null,null,null,null,null,null,null,null,null,null,null,null,null,null,null,null,null,null,null,null,false,0]
[null,null,null,null,null,null,null,null,null,null,null,null,null,null,null,null,null,null,null,null,null,null,null,null,null,null,null,null,null,null,null,null,null,null,null,null,null,null,null,null,null,null,null,null,null,null,null,null,null,"(自由記述)"]
["3-29.現在の監視制御システム構築にあたり、留意点や苦労した点について記載してください。"]
[]
[null,null,null,null,null,null,null,null,null,null,null,null,null,null,null,null,null,null,null,null,null,null,null,null,null,null,null,null,null,null,null,null,null,null,null,null,null,null,null,null,null,null,null,null,null,null,null,null,null,"(自由記述)"]
[]
[]
[]
["3-30.現在の監視制御システムの利用形態を選択してください。(複数回答可)"]
[null,null,"①常時監視",null,null,null,null,null,null,null,null,null,null,null,null,null,null,null,null,null,null,null,null,null,null,null,null,null,null,null,null,null,null,null,null,null,null,null,null,null,null,null,null,null,null,null,null,null,false,{"$f":"N(AW245)","v":0}]
[null,null,"②定期監視",null,null,null,null,null,null,null,null,null,null,null,null,null,null,null,null,null,null,null,null,null,null,null,null,null,null,null,null,null,null,null,null,null,null,null,null,null,null,null,null,null,null,null,null,null,false,{"$f":"N(AW246)","v":0}]
[null,null,"③異常時対応",null,null,null,null,null,null,null,null,null,null,null,null,null,null,null,null,null,null,null,null,null,null,null,null,null,null,null,null,null,null,null,null,null,null,null,null,null,null,null,null,null,null,null,null,null,false,0]
[null,null,"④必要に応じて",null,null,null,null,null,null,null,null,null,null,null,null,null,null,null,null,null,null,null,null,null,null,null,null,null,null,null,null,null,null,null,null,null,null,null,null,null,null,null,null,null,null,null,null,null,false,0]
[null,null,"⑤その他",null,null,null,null,null,null,null,null,null,null,null,null,null,null,null,null,null,null,null,null,null,null,null,null,null,null,null,null,null,null,null,null,null,null,null,null,null,null,null,null,null,null,null,null,null,false,0]
[null,null,null,null,null,null,null,null,null,null,null,null,null,null,null,null,null,null,null,null,null,null,null,null,null,null,null,null,null,null,null,null,null,null,null,null,null,null,null,null,null,null,null,null,null,null,null,null,null,"(自由記述)"]
[]
["3-31.現在の監視制御システムのデータ更新周期を選択してください。"]
[null,null,"①1秒",null,null,null,null,null,null,null,null,null,null,null,null,null,null,null,null,null,null,null,null,null,null,null,null,null,null,null,null,null,null,null,null,null,null,null,null,null,null,null,null,null,null,null,null,null,null,0]
[null,null,"②5秒"]
[null,null,"③10秒"]
[null,null,"④30秒"]
[null,null,"⑤1分"]
[null,null,"⑥5分"]
[null,null,"⑦10分"]
[null,null,"⑧30分"]
[null,null,"⑨1時間以上"]
[]
["3-32.現在の監視制御システムの利用頻度を選択してください。"]
[null,null,"①常時",null,null,null,null,null,null,null,null,null,null,null,null,null,null,null,null,null,null,null,null,null,null,null,null,null,null,null,null,null,null,null,null,null,null,null,null,null,null,null,null,null,null,null,null,null,null,0]
[null,null,"②1回／分"]
[null,null,"③数回／時"]
[null,null,"④1回／時"]
[null,null,"⑤数回／日"]
[null,null,"⑥1回／日"]
[null,null,"⑦数回／年"]
[null,null,"⑧数回／年以下"]
[]
["3-33.現在の監視制御システムの利用者数を選択してください。"]
[null,null,"①不特定",null,null,null,null,null,null,null,null,null,null,null,null,null,null,null,null,null,null,null,null,null,null,null,null,null,null,null,null,null,null,null,null,null,null,null,null,null,null,null,null,null,null,null,null,null,null,0]
[null,null,"②5人未満"]
[null,null,"③5人～10人未満"]
[null,null,"④10人～50人未満"]
[null,null,"⑤50人以上"]
[]
["3-34.広域化・共同化に向けて、現状の監視制御システムの更新・統廃合する時期を選択してください。"]
[]
[null,null,"①1～5年後",null,null,null,null,null,null,null,null,null,null,null,null,null,null,null,null,null,null,null,null,null,null,null,null,null,null,null,null,null,null,null,null,null,null,null,null,null,null,null,null,null,null,null,null,null,null,0]
[null,null,"②5～10年後"]
[null,null,"③未定"]
[null,null,"④その他",null,null,null,null,null,null,null,null,null,null,null,null,null,null,null,null,null,null,null,null,null,null,null,null,null,null,null,null,null,null,null,null,null,null,null,null,null,null,null,null,null,null,null,null,null,null,"(自由記述)"]
[]
[]
["3-35.広域化・共同化に向けて、監視制御システムの更新時の課題・要望を選択してください\n(複数回答可)"]
[]
[null,null,"①異なるメーカ間の接続が必要となる",null,null,null,null,null,null,null,null,null,null,null,null,null,null,null,null,null,null,null,null,null,null,null,null,null,null,null,null,null,null,null,null,null,null,null,null,null,null,null,null,null,null,null,null,null,false,{"$f":"N(AW290)","v":0}]
[null,null,"②更新前と比べて、信号点数が大幅に増える",null,null,null,null,null,null,null,null,null,null,null,null,null,null,null,null,null,null,null,null,null,null,null,null,null,null,null,null,null,null,null,null,null,null,null,null,null,null,null,null,null,null,null,null,null,false,{"$f":"N(AW291)","v":0}]
[null,null,"③更新前と比べて、信号点数が大幅に減る",null,null,null,null,null,null,null,null,null,null,null,null,null,null,null,null,null,null,null,null,null,null,null,null,null,null,null,null,null,null,null,null,null,null,null,null,null,null,null,null,null,null,null,null,null,false,0]
[null,null,"④監視拠点が増えることで、通信回線費用が増える",null,null,null,null,null,null,null,null,null,null,null,null,null,null,null,null,null,null,null,null,null,null,null,null,null,null,null,null,null,null,null,null,null,null,null,null,null,null,null,null,null,null,null,null,null,false,0]
[null,null,"⑤監視拠点が増えることで、操作権が煩雑になる",null,null,null,null,null,null,null,null,null,null,null,null,null,null,null,null,null,null,null,null,null,null,null,null,null,null,null,null,null,null,null,null,null,null,null,null,null,null,null,null,null,null,null,null,null,false,0]
[null,null,"⑥外部に接続することでセキュリティに不安がある",null,null,null,null,null,null,null,null,null,null,null,null,null,null,null,null,null,null,null,null,null,null,null,null,null,null,null,null,null,null,null,null,null,null,null,null,null,null,null,null,null,null,null,null,null,false,0]
[null,null,"⑦監視以外の機能も同じ監視制御システムに実装したかったが、できなかった\n(例：需要予測機能、台帳機能など)",null,null,null,null,null,null,null,null,null,null,null,null,null,null,null,null,null,null,null,null,null,null,null,null,null,null,null,null,null,null,null,null,null,null,null,null,null,null,null,null,null,null,null,null,null,false,0]
[]
[null,null,null,null,null,null,null,null,null,null,null,null,null,null,null,null,null,null,null,null,null,null,null,null,null,null,null,null,null,null,null,null,null,null,null,null,null,null,null,null,null,null,null,null,null,null,null,null,null,"(実装したい機能を自由記述)"]
[]
[]
[null,null,"⑧事業の統廃合と監視制御システムの更新時期が合わない",null,null,null,null,null,null,null,null,null,null,null,null,null,null,null,null,null,null,null,null,null,null,null,null,null,null,null,null,null,null,null,null,null,null,null,null,null,null,null,null,null,null,null,null,null,false,{"$f":"N(AW301)","v":0}]
[null,null,"⑨監視制御システムのメーカが変わることで、操作性が大きく変わる",null,null,null,null,null,null,null,null,null,null,null,null,null,null,null,null,null,null,null,null,null,null,null,null,null,null,null,null,null,null,null,null,null,null,null,null,null,null,null,null,null,null,null,null,null,false,{"$f":"N(AW302)","v":0}]
[null,null,"⑩その他",null,null,null,null,null,null,null,null,null,null,null,null,null,null,null,null,null,null,null,null,null,null,null,null,null,null,null,null,null,null,null,null,null,null,null,null,null,null,null,null,null,null,null,null,null,false,0]
[null,null,null,null,null,null,null,null,null,null,null,null,null,null,null,null,null,null,null,null,null,null,null,null,null,null,null,null,null,null,null,null,null,null,null,null,null,null,null,null,null,null,null,null,null,null,null,null,null,"(自由記述)"]
[]
[]
[]
[]
[]
[]
[]
[]
[]
[]
[]
[]
[]
[]
[]
[]
[]
[]
[]
[]
[]
[]
[]
[]
[]
[]
[]
[]
[]
[]
[]
[]
[]
[]
[]
[]
[]
[]
[]
[]
[]
[]
[]
[]
[]
[]
[]
[]
[]
[]
[]
[]
[]
[]
[]
[]
[]
[]
[]
[]
[]
[]
[]
[]
[]
[]
[]
[]
[]
[]
[]
[]
[]
[]
[]
[]
[]
[]
[]
[]
[]
[]
[]
[]
[]
[]
[]
[]
[]
[]
[]
[]
[]
[]
[]
[]
[]
[]
[]
[]
[]
[]
[]
[]
[]
[]
[]
[]
[]
[]
[]
[]
[]
[]
[]
[]
[]
[]
[]
[]
[]
[]
[]
[]
[]
[]
[]
[]
[]
[]
[]
[]
[]
[]
[]
[]
[]
[]
[]
[]
[]
[]
[]
[]
[]
[]
[]
[]
[]
[]
[]
[]
[]
[]
[]
[]
[]
[]
[]
[]
[]
[]
[]
[]
[]
[]
[]
[]
[]
[]
[]
[]
[]
[]
[]
[]
[]
[]
[]
[]
[]
[]
[]
[]
[]
[]
[]
[]
[]
[]
[]
[]
[]
[]
[]
[]
[]
[]
[]
[]
[]
[]
[]
[]
[]
[]
[]
[]
[]
[]
[]
[]
[]
[]
[]
[]
[]
[]
[]
[]
[]
[]
[]
[]
[]
[]
[]
[]
[]
[]
[]
[]
[]
[]
[]
[]
[]
[]
[]
[]
[]
[]
[]
[]
[]
[]
[]
[]
[]
[]
[]
[]
[]
[]
[]
[]
[]
[]
[]
[]
[]
[]
[]
[]
[]
[]
[]
[]
[]
[]
[]
[]
[]
[]
[]
[]
[]
[]
[]
[]
[]
[]
[]
[]
[]
[]
[]
[]
[]
[]
[]
[]
[]
[]
[]
[]
[]
[]
[]
[]
[]
[]
[]
[]
[]
[]
[]
[]
[]
[]
[]
[]
[]
[]
[]
[]
[]
[]
[]
[]
[]
[]
[]
[]
[]
[]
[]
[]
[]
[]
[]
[]
[]
[]
[]
[]
[]
[]
[]
[]
[]
[]
[]
[]
[]
[]
[]
[]
[]
[]
[]
[]
[]
[]
[]
[]
[]
[]
[]
[]
[]
[]
[]
[]
[]
[]
[]
[]
[]
[]
[]
[]
[]
[]
[]
[]
[]
[]
[]
[]
[]
[]
[]
[]
[]
[]
[]
[]
[]
[]
[]
[]
[]
[]
[]
[]
[]
[]
[]
[]
[]
[]
[]
[]
[]
[]
[]
[]
[]
[]
[]
[]
[]
[]
[]
[]
[]
[]
[]
[]
[]
[]
[]
[]
[]
[]
[]
[]
[]
[]
[]
[]
[]
[]
[]
[]
[]
[]
[]
[]
[]
[]
[]
[]
[]
[]
[]
[]
[]
[]
[]
[]
[]
[]
[]
[]
[]
[]
[]
[]
[]
[]
[]
[]
[]
[]
[]
[]
[]
[]
[]
[]
[]
[]
[]
[]
[]
[]
[]
[]
[]
[]
[]
[]
[]
[]
[]
[]
[]
[]
[]
[]
[]
[]
[]
[]
[]
[]
[]
[]
[]
[]
[]
[]
[]
[]
[]
[]
[]
[]
[]
[]
[]
[]
[]
[]
[]
[]
[]
[]
[]
[]
[]
[]
[]
[]
[]
[]
[]
[]
[]
[]
[]
[]
[]
[]
[]
[]
[]
[]
[]
[]
[]
[]
[]
[]
[]
[]
[]
[]
[]
[]
[]
[]
[]
[]
[]
[]
[]
[]
[]
[]
[]
[]
[]
[]
[]
[]
[]
[]
[]
[]
[]
[]
[]
[]
[]
[]
[]
[]
[]
[]
[]
[]
[]
[]
[]
[]
[]
[]
[]
[]
[]
[]
[]
[]
[]
[]
[]
[]
[]
[]
[]
[]
[]
[]
[]
[]
[]
[]
[]
[]
[]
[]
[]
[]
[]
[]
[]
[]
[]
[]
[]
[]
[]
[]
[]
[]
[]
[]
[]
[]
[]
[]
[]
[]
[]
[]
[]
[]
[]
[]
[]
[]
[]
[]
[]
[]
[]
[]
[]
[]
[]
[]
[]
[]
[]
[]
[]
[]
[]
[]
[]
[]
[]
[]
[]
[]
[]
[]
[]
[]
[]
[]
[]
[]
[]
[]
[]
[]
[]
[]
[]
[]
[]
[]
[]
[]
[]
[]
[]
[]
[]
[]
[]
[]
[]
[]
[]
[]
[]
[]
[]
[]
[]
[]
[]
[]
[]
[]
[]
[]
[]
[]
[]
[]
[]
[]
[]
[]
[]
[]
[]
[]
[]
[]
[]
[]
[]
[]
[]
[]
[]
[]
[]
[]
[]
[]
[]
[]
[]
[]
[]
[]
[]
[]
[]
[]
[]
[]
[]
[]
[]
[]
[]
[]
[]
[]
[]
[]
[]
[]
[]
[]
[]
[]
[]
[]
[]
[]
[]
[]
[]
[]
[]
[]
[]
[]
[]
[]
[]
[]
[]
[]
[]
[]
[]
[]
[]
[]
[]
[]
[]
[]
[]
[]
[]
[]
[]
[]
[]
[]
[]
[]
[]
[]
[]
[]
[]
[]
[]
[]
[]
[]
[]
[]
[]
[]
[]
[]
[]
[]
[]
[]
[]
[]
[]
[]
[]
[]
[]
[]
[]
[]
[]
[]
[]
[]
[]
[]
[]
[]
[]
[]
[]
[]
[]
[]
[]
[]
[]
[]
[]
[]
[]
[]
[]
[]
[]
[]
[]
[]
[]
[]
[]
[]
[]
[]
[]
[]
[]
[]
[]
[]
[]
[]
[]
[]
[]
[]
[]
[]
[]
[]
[]
[]
[]
[]
[]
[]
[]
[]
[]
[]
[]
[]
[]
[]
[]
[]
[]
[]
[]
[]
[]
[]
[]
[]
[]
[]
[]
[]
[]
[]
[]
[]
[]
[]
[]
[]
[]
[]
[]
[]
[]
[]
[]
[]
[]
[]
[]
[]
[]
[]
[]
[]
[]
[]
[]
[]
[]
[]
[]
[]
[]
[]
[]
[]
[]
[]
[]
[]
[]
[]
[]
[]
[]
[]
[]
[]
[]
[]
[]
[]
[]
[]
[]
[]
[]
[]
[]
[]
[]
[]
[]
[]
[]
[]
[]
[]
[]
[]
[]
[]
[]
[]
[]
[]
[]
[]
[]
[]
[]
[]
[]
[]
[]
[]
[]
[]
[]
[]
[]
[]
[]
[]
[]
[]
[]
[]
[]
[]
[]
[]
[]
[]
[]
[]
[]
[]
[]
[]
[]
[]
[]
[]
[]
[]
[]
[]
[]
[]
[]
[]
[]
[]
[]
[]
[]
[]
[]
[]
[]
[]
[]
[]
[]
[]
[]
[]
[]
[]
[]
[]
[]
[]
[]
[]
[]
[]
[]
[]
[]
[]
[]
[]
[]
[]
[]
[]
[]
[]
[]
[]
[]
[]
[]
[]
[]
[]
[]
[]
[]
[]
[]
[]
[]
[]
[]
[]
[]
[]
[]
[]
[]
[]
[]
[]
[]
[]
[]
[]
[]
[]
[]
[]
[]
[]
[]
[]
[]
[]
[]
[]
[]
[]
[]
[]
[]
[]
[]
[]
[]
[]
[]
[]
[]
[]
[]
[]
[]
[]
[]
[]
[]
[]
[]
[]
[]
[]
[]
[]
[]
[]
[]
[]
[]
[]
[]
[]
[]
[]
[]
[]
[]
[]
[]
[]
[]
[]
[]
[]
[]
[]
[]
[]
[]
[]
[]
[]
[]
[]
[]
[]
[]
[]
[]
[]
[]
[]
[]
[]
[]
[]
[]
[]
[]
[]
[]
[]
[]
[]
[]
[]
[]
[]
[]
[]
[]
[]
[]
[]
[]
[]
[]
[]
[]
[]
[]
[]
[]
[]
[]
[]
[]
[]
[]
[]
[]
[]
[]
[]
[]
[]
[]
[]
[]
[]
[]
[]
[]
[]
[]
[]
[]
[]
[]
[]
[]
[]
[]
[]
[]
[]
[]
[]
[]
[]
[]
[]
[]
[]
[]
[]
[]
[]
[]
[]
[]
[]
[]
[]
[]
[]
[]
[]
[]
[]
[]
[]
[]
[]
[]
[]
[]
[]
[]
[]
[]
[]
[]
[]
[]
[]
[]
[]
[]
[]
[]
[]
[]
[]
[]
[]
[]
[]
[]
[]
[]
[]
[]
[]
[]
[]
[]
[]
[]
[]
[]
[]
[]
[]
[]
[]
[]
[]
[]
[]
[]
[]
[]
[]
[]
[]
[]
[]
[]
[]
[]
[]
[]
[]
[]
[]
[]
[]
[]
[]
[]
[]
[]
[]
[]
[]
[]
[]
[]
[]
[]
[]
[]
[]
[]
[]
[]
[]
[]
[]
[]
[]
[]
[]
[]
[]
[]
[]
[]
[]
[]
[]
[]
[]
[]
[]
[]
[]
[]
[]
[]
[]
[]
[]
[]
[]
[]
[]
[]
[]
[]
[]
[]
[]
[]
[]
[]
[]
[]
[]
[]
[]
[]
[]
[]
[]
[]
[]
[]
[]
[]
[]
[]
[]
[]
[]
[]
[]
[]
[]
[]
[]
[]
[]
[]
[]
[]
[]
[]
[]
[]
[]
[]
[]
[]
[]
[]
[]
[]
[]
[]
[]
[]
[]
[]
[]
[]
[]
[]
[]
[]
[]
[]
[]
[]
[]
[]
[]
[]
[]
[]
[]
[]
[]
[]
[]
[]
[]
[]
[]
[]
[]
[]
[]
[]
[]
[]
[]
[]
[]
[]
[]
[]
[]
[]
[]
[]
[]
[]
[]
[]
[]
[]
[]
[]
[]
[]
[]
[]
[]
[]
[]
[]
[]
[]
[]
[]
[]
[]
[]
[]
[]
[]
[]
[]
[]
[]
[]
[]
[]
[]
[]
[]
[]
[]
[]
[]
[]
[]
[]
[]
[]
[]
[]
[]
[]
[]
[]
[]
[]
[]
[]
[]
[]
[]
[]
[]
[]
[]
[]
[]
[]
[]
[]
[]
[]
[]
[]
[]
[]
[]
[]
[]
[]
[]
[]
[]
[]
[]
[]
[]
[]
[]
[]
[]
[]
[]
[]
[]
[]
[]
[]
[]
[]
[]
[]
[]
[]
[]
[]
[]
[]
[]
[]
[]
[]
[]
[]
[]
[]
[]
[]
[]
[]
[]
[]
[]
[]
[]
[]
[]
[]
[]
[]
[]
[]
[]
[]
[]
[]
[]
[]
[]
[]
[]
[]
[]
[]
[]
[]
[]
[]
[]
[]
[]
[]
[]
[]
[]
[]
[]
[]
[]
[]
[]
[]
[]
[]
[]
[]
[]
[]
[]
[]
[]
[]
[]
[]
[]
[]
[]
[]
[]
[]
[]
[]
[]
[]
[]
[]
[]
[]
[]
[]
[]
[]
[]
[]
[]
[]
[]
[]
[]
[]
[]
[]
[]
[]
[]
[]
[]
[]
[]
[]
[]
[]
[]
[]
[]
[]
[]
[]
[]
[]
[]
[]
[]
[]
[]
[]
[]
[]
[]
[]
[]
[]
[]
[]
[]
[]
[]
[]
[]
[]
[]
[]
[]
[]
[]
[]
[]
[]
[]
[]
[]
[]
[]
[]
[]
[]
[]
[]
[]
[]
[]
[]
[]
[]
[]
[]
[]
[]
[]
[]
[]
[]
[]
[]
[]
[]
[]
[]
[]
[]
[]
[]
[]
[]
[]
[]
[]
[]
[]
[]
[]
[]
[]
[]
[]
[]
[]
[]
[]
[]
[]
[]
[]
[]
[]
[]
[]
[]
[]
[]
[]
[]
[]
[]
[]
[]
[]
[]
[]
[]
[]
[]
[]
[]
[]
[]
[]
[]
[]
[]
[]
[]
[]
[]
[]
[]
[]
[]
[]
[]
[]
[]
[]
[]
[]
[]
[]
[]
[]
[]
[]
[]
[]
[]
[]
[]
[]
[]
[]
[]
[]
[]
[]
[]
[]
[]
[]
[]
[]
[]
[]
[]
[]
[]
[]
[]
[]
[]
[]
[]
[]
[]
[]
[]
[]
[]
[]
[]
[]
[]
[]
[]
[]
[]
[]
[]
[]
[]
[]
[]
[]
[]
[]
[]
[]
[]
[]
[]
[]
[]
[]
[]
[]
[]
[]
[]
[]
[]
[]
[]
[]
[]
[]
[]
[]
[]
[]
[]
[]
[]
[]
[]
[]
[]
[]
[]
[]
[]
[]
[]
[]
[]
[]
[]
[]
[]
[]
[]
[]
[]
[]
[]
[]
[]
[]
[]
[]
[]
[]
[]
[]
[]
[]
[]
[]
[]
[]
[]
[]
[]
[]
[]
[]
[]
[]
[]
[]
[]
[]
[]
[]
[]
[]
[]
[]
[]
[]
[]
[]
[]
[]
[]
[]
[]
[]
[]
[]
[]
[]
[]
[]
[]
[]
[]
[]
[]
[]
[]
[]
[]
[]
[]
[]
[]
[]
[]
[]
[]
[]
[]
[]
[]
[]
[]
[]
[]
[]
[]
[]
[]
[]
[]
[]
[]
[]
[]
[]
[]
[]
[]
[]
[]
[]
[]
[]
[]
[]
[]
[]
[]
[]
[]
[]
[]
[]
[]
[]
[]
[]
[]
[]
[]
[]
[]
[]
[]
[]
[]
[]
[]
[]
[]
[]
[]
[]
[]
[]
[]
[]
[]
[]
[]
[]
[]
[]
[]
[]
[]
[]
[]
[]
[]
[]
[]
[]
[]
[]
[]
[]
[]
[]
[]
[]
[]
[]
[]
[]
[]
[]
[]
[]
[]
[]
[]
[]
[]
[]
[]
[]
[]
[]
[]
[]
[]
[]
[]
[]
[]
[]
[]
[]
[]
[]
[]
[]
[]
[]
[]
[]
[]
[]
[]
[]
[]
[]
[]
[]
[]
[]
[]
[]
[]
[]
[]
[]
[]
[]
[]
[]
[]
[]
[]
[]
[]
[]
[]
[]
[]
[]
[]
[]
[]
[]
[]
[]
[]
[]
[]
[]
[]
[]
[]
[]
[]
[]
[]
[]
[]
[]
[]
[]
[]
[]
[]
[]
[]
[]
[]
[]
[]
[]
[]
[]
[]
[]
[]
[]
[]
[]
[]
[]
[]
[]
[]
[]
[]
[]
[]
[]
[]
[]
[]
[]
[]
[]
[]
[]
[]
[]
[]
[]
[]
[]
[]
[]
[]
[]
[]
[]
[]
[]
[]
[]
[]
[]
[]
[]
[]
[]
[]
[]
[]
[]
[]
[]
[]
[]
[]
[]
[]
[]
[]
[]
[]
[]
[]
[]
[]
[]
[]
[]
[]
[]
[]
[]
[]
[]
[]
[]
[]
[]
[]
[]
[]
[]
[]
[]
[]
[]
[]
[]
[]
[]
[]
[]
[]
[]
[]
[]
[]
[]
[]
[]
[]
[]
[]
[]
[]
[]
[]
[]
[]
[]
[]
[]
[]
[]
[]
[]
[]
[]
[]
[]
[]
[]
[]
[]
[]
[]
[]
[]
[]
[]
[]
[]
[]
[]
[]
[]
[]
[]
[]
[]
[]
[]
[]
[]
[]
[]
[]
[]
[]
[]
[]
[]
[]
[]
[]
[]
[]
[]
[]
[]
[]
[]
[]
[]
[]
[]
[]
[]
[]
[]
[]
[]
[]
[]
[]
[]
[]
[]
[]
[]
[]
[]
[]
[]
[]
[]
[]
[]
[]
[]
[]
[]
[]
[]
[]
[]
[]
[]
[]
[]
[]
[]
[]
[]
[]
[]
[]
[]
[]
[]
[]
[]
[]
[]
[]
[]
[]
[]
[]
[]
[]
[]
[]
[]
[]
[]
[]
[]
[]
[]
[]
[]
[]
[]
[]
[]
[]
[]
[]
[]
[]
[]
[]
[]
[]
[]
[]
[]
[]
[]
[]
[]
[]
[]
[]
[]
[]
[]
[]
[]
[]
[]
[]
[]
[]
[]
[]
[]
[]
[]
[]
[]
[]
[]
[]
[]
[]
[]
[]
[]
[]
[]
[]
[]
[]
[]
[]
[]
[]
[]
[]
[]
[]
[]
[]
[]
[]
[]
[]
[]
[]
[]
[]
[]
[]
[]
[]
[]
[]
[]
[]
[]
[]
[]
[]
[]
[]
[]
[]
[]
[]
[]
[]
[]
[]
[]
[]
[]
[]
[]
[]
[]
[]
[]
[]
[]
[]
[]
[]
[]
[]
[]
[]
[]
[]
[]
[]
[]
[]
[]
[]
[]
[]
[]
[]
[]
[]
[]
[]
[]
[]
[]
[]
[]
[]
[]
[]
[]
[]
[]
[]
[]
[]
[]
[]
[]
[]
[]
[]
[]
[]
[]
[]
[]
[]
[]
[]
[]
[]
[]
[]
[]
[]
[]
[]
[]
[]
[]
[]
[]
[]
[]
[]
[]
[]
[]
[]
[]
[]
[]
[]
[]
[]
[]
[]
[]
[]
[]
[]
[]
[]
[]
[]
[]
[]
[]
[]
[]
[]
[]
[]
[]
[]
[]
[]
[]
[]
[]
[]
[]
[]
[]
[]
[]
[]
[]
[]
[]
[]
[]
[]
[]
[]
[]
[]
[]
[]
[]
[]
[]
[]
[]
[]
[]
[]
[]
[]
[]
[]
[]
[]
[]
[]
[]
[]
[]
[]
[]
[]
[]
[]
[]
[]
[]
[]
[]
[]
[]
[]
[]
[]
[]
[]
[]
[]
[]
[]
[]
[]
[]
[]
[]
[]
[]
[]
[]
[]
[]
[]
[]
[]
[]
[]
[]
[]
[]
[]
[]
[]
[]
[]
[]
[]
[]
[]
[]
[]
[]
[]
[]
[]
[]
[]
[]
[]
[]
[]
[]
[]
[]
[]
[]
[]
[]
[]
[]
[]
[]
[]
[]
[]
[]
[]
[]
[]
[]
[]
[]
[]
[]
[]
[]
[]
[]
[]
[]
[]
[]
[]
[]
[]
[]
[]
[]
[]
[]
[]
[]
[]
[]
[]
[]
[]
[]
[]
[]
[]
[]
[]
[]
[]
[]
[]
[]
[]
[]
[]
[]
[]
[]
[]
[]
[]
[]
[]
[]
[]
[]
[]
[]
[]
[]
[]
[]
[]
[]
[]
[]
[]
[]
[]
[]
[]
[]
[]
[]
[]
[]
[]
[]
[]
[]
[]
[]
[]
[]
[]
[]
[]
[]
[]
[]
[]
[]
[]
[]
[]
[]
[]
[]
[]
[]
[]
[]
[]
[]
[]
[]
[]
[]
[]
[]
[]
[]
[]
[]
[]
[]
[]
[]
[]
[]
[]
[]
[]
[]
[]
[]
[]
[]
[]
[]
[]
[]
[]
[]
[]
[]
[]
[]
[]
[]
[]
[]
[]
[]
[]
[]
[]
[]
[]
[]
[]
[]
[]
[]
[]
[]
[]
[]
[]
[]
[]
[]
[]
[]
[]
[]
[]
[]
[]
[]
[]
[]
[]
[]
[]
[]
[]
[]
[]
[]
[]
[]
[]
[]
[]
[]
[]
[]
[]
[]
[]
[]
[]
[]
[]
[]
[]
[]
[]
[]
[]
[]
[]
[]
[]
[]
[]
[]
[]
[]
[]
[]
[]
[]
[]
[]
[]
[]
[]
[]
[]
[]
[]
[]
[]
[]
[]
[]
[]
[]
[]
[]
[]
[]
[]
[]
[]
[]
[]
[]
[]
[]
[]
[]
[]
[]
[]
[]
[]
[]
[]
[]
[]
[]
[]
[]
[]
[]
[]
[]
[]
[]
[]
[]
[]
[]
[]
[]
[]
[]
[]
[]
[]
[]
[]
[]
[]
[]
[]
[]
[]
[]
[]
[]
[]
[]
[]
[]
[]
[]
[]
[]
[]
[]
[]
[]
[]
[]
[]
[]
[]
[]
[]
[]
[]
[]
[]
[]
[]
[]
[]
[]
[]
[]
[]
[]
[]
[]
[]
[]
[]
[]
[]
[]
[]
[]
[]
[]
[]
[]
[]
[]
[]
[]
[]
[]
[]
[]
[]
[]
[]
[]
[]
[]
[]
[]
[]
[]
[]
[]
[]
[]
[]
[]
[]
[]
[]
[]
[]
[]
[]
[]
[]
[]
[]
[]
[]
[]
[]
[]
[]
[]
[]
[]
[]
[]
[]
[]
[]
[]
[]
[]
[]
[]
[]
[]
[]
[]
[]
[]
[]
[]
[]
[]
[]
[]
[]
[]
[]
[]
[]
[]
[]
[]
[]
[]
[]
[]
[]
[]
[]
[]
[]
[]
[]
[]
[]
[]
[]
[]
[]
[]
[]
[]
[]
[]
[]
[]
[]
[]
[]
[]
[]
[]
[]
[]
[]
[]
[]
[]
[]
[]
[]
[]
[]
[]
[]
[]
[]
[]
[]
[]
[]
[]
[]
[]
[]
[]
[]
[]
[]
[]
[]
[]
[]
[]
[]
[]
[]
[]
[]
[]
[]
[]
[]
[]
[]
[]
[]
[]
[]
[]
[]
[]
[]
[]
[]
[]
[]
[]
[]
[]
[]
[]
[]
[]
[]
[]
[]
[]
[]
[]
[]
[]
[]
[]
[]
[]
[]
[]
[]
[]
[]
[]
[]
[]
[]
[]
[]
[]
[]
[]
[]
[]
[]
[]
[]
[]
[]
[]
[]
[]
[]
[]
[]
[]
[]
[]
[]
[]
[]
[]
[]
[]
[]
[]
[]
[]
[]
[]
[]
[]
[]
[]
[]
[]
[]
[]
[]
[]
[]
[]
[]
[]
[]
[]
[]
[]
[]
[]
[]
[]
[]
[]
[]
[]
[]
[]
[]
[]
[]
[]
[]
[]
[]
[]
[]
[]
[]
[]
[]
[]
[]
[]
[]
[]
[]
[]
[]
[]
[]
[]
[]
[]
[]
[]
[]
[]
[]
[]
[]
[]
[]
[]
[]
[]
[]
[]
[]
[]
[]
[]
[]
[]
[]
[]
[]
[]
[]
[]
[]
[]
[]
[]
[]
[]
[]
[]
[]
[]
[]
[]
[]
[]
[]
[]
[]
[]
[]
[]
[]
[]
[]
[]
[]
[]
[]
[]
[]
[]
[]
[]
[]
[]
[]
[]
[]
[]
[]
[]
[]
[]
[]
[]
[]
[]
[]
[]
[]
[]
[]
[]
[]
[]
[]
[]
[]
[]
[]
[]
[]
[]
[]
[]
[]
[]
[]
[]
[]
[]
[]
[]
[]
[]
[]
[]
[]
[]
[]
[]
[]
[]
[]
[]
[]
[]
[]
[]
[]
[]
[]
[]
[]
[]
[]
[]
[]
[]
[]
[]
[]
[]
[]
[]
[]
[]
[]
[]
[]
[]
[]
[]
[]
[]
[]
[]
[]
[]
[]
[]
[]
[]
[]
[]
[]
[]
[]
[]
[]
[]
[]
[]
[]
[]
[]
[]
[]
[]
[]
[]
[]
[]
[]
[]
[]
[]
[]
[]
[]
[]
[]
[]
[]
[]
[]
[]
[]
[]
[]
[]
[]
[]
[]
[]
[]
[]
[]
[]
[]
[]
[]
[]
[]
[]
[]
[]
[]
[]
[]
[]
[]
[]
[]
[]
[]
[]
[]
[]
[]
[]
[]
[]
[]
[]
[]
[]
[]
[]
[]
[]
[]
[]
[]
[]
[]
[]
[]
[]
[]
[]
[]
[]
[]
[]
[]
[]
[]
[]
[]
[]
[]
[]
[]
[]
[]
[]
[]
[]
[]
[]
[]
[]
[]
[]
[]
[]
[]
[]
[]
[]
[]
[]
[]
[]
[]
[]
[]
[]
[]
[]
[]
[]
[]
[]
[]
[]
[]
[]
[]
[]
[]
[]
[]
[]
[]
[]
[]
[]
[]
[]
[]
[]
[]
[]
[]
[]
[]
[]
[]
[]
[]
[]
[]
[]
[]
[]
[]
[]
[]
[]
[]
[]
[]
[]
[]
[]
[]
[]
[]
[]
[]
[]
[]
[]
[]
[]
[]
[]
[]
[]
[]
[]
[]
[]
[]
[]
[]
[]
[]
[]
[]
[]
[]
[]
[]
[]
[]
[]
[]
[]
[]
[]
[]
[]
[]
[]
[]
[]
[]
[]
[]
[]
[]
[]
[]
[]
[]
[]
[]
[]
[]
[]
[]
[]
[]
[]
[]
[]
[]
[]
[]
[]
[]
[]
[]
[]
[]
[]
[]
[]
[]
[]
[]
[]
[]
[]
[]
[]
[]
[]
[]
[]
[]
[]
[]
[]
[]
[]
[]
[]
[]
[]
[]
[]
[]
[]
[]
[]
[]
[]
[]
[]
[]
[]
[]
[]
[]
[]
[]
[]
[]
[]
[]
[]
[]
[]
[]
[]
[]
[]
[]
[]
[]
[]
[]
[]
[]
[]
[]
[]
[]
[]
[]
[]
[]
[]
[]
[]
[]
[]
[]
[]
[]
[]
[]
[]
[]
[]
[]
[]
[]
[null,null,null,null,null,null,null,null,null,null,null,null,null,null,null,null,null,null,null,null,null,null,null,null,null,null,null,null,null,null,null,null,null,null,null,null,null,null,null,null,null,null,null,null,null,null,null,null,null,4]

{"sheet":"4_ネットワーク","index":5,"n_rows":79,"n_cols":67,"rows_kept":79,"cut":false,"hidden":false,"merged":[[38,66,39,74],[66,2,67,21],[40,53,41,58],[40,59,41,60],[40,61,41,63],[40,64,41,65],[42,53,43,58],[42,59,43,60],[42,61,43,63],[42,64,43,65],[42,66,43,74],[40,66,41,74],[38,53,39,58],[38,59,39,60],[38,61,39,63],[38,64,39,65],[34,53,35,58],[34,59,35,60],[34,61,35,63],[34,64,35,65],[34,66,35,74],[36,53,37,58],[36,59,37,60],[36,61,37,63],[36,64,37,65],[36,66,37,74],[42,0,43,0],[42,12,43,13],[32,0,33,0],[34,0,35,0],[36,0,37,0],[42,7,43,8],[42,9,43,11],[32,1,33,6],[38,1,39,6],[40,1,41,6],[34,9,35,11],[36,9,37,11],[34,7,35,8],[34,1,35,6],[36,1,37,6],[30,0,31,0],[40,0,41,0],[28,1,29,6],[30,1,31,6],[68,2,69,21],[32,9,33,11],[38,14,39,22],[40,7,41,8],[40,9,41,11],[40,12,41,13],[40,14,41,22],[32,7,33,8],[38,7,39,8],[42,14,43,22],[42,1,43,6],[38,9,39,11],[77,1,77,22],[27,14,27,22],[28,14,29,22],[30,14,31,22],[32,14,33,22],[34,14,35,22],[36,14,37,22],[30,12,31,13],[32,12,33,13],[34,12,35,13],[36,12,37,13],[45,0,46,22],[36,7,37,8],[38,12,39,13],[28,12,29,13],[38,0,39,0],[0,0,0,22],[3,0,4,22],[11,0,11,22],[28,9,29,11],[30,9,31,11],[30,7,31,8],[6,1,7,22],[13,1,14,22],[16,1,17,22],[24,1,24,22],[27,7,27,8],[28,7,29,8],[28,0,29,0],[27,0,27,6],[27,9,27,11],[27,12,27,13]]}
["【４.ネットワークについてのヒアリング項目】"]
["※本章で示す「ネットワーク」とは施設外の機器あるいはシステムと通信するものを指します"]
[]
["4-1.は下方の「4-1.回答欄」に各施設毎に当てはまる内容を回答してください。\n６ヵ所以上の施設を保有している場合は代表的な施設５ヵ所について回答してください。\n　（施設例：A浄水場、B水源（井戸）、C下水処理場、Dポンプ場、Eし尿処理場 等）"]
[]
[]
[null,"4-1-1.施設外での監視を行う際、通信障害発生による無監視状態の発生の許容可否を選択してください。(プルダウン選択)"]
[]
[null,null,"①許容できる"]
[null,null,"②許容できない"]
[null,null,"③わからない"]
["②または③と回答された方は設問4-1-3へ進んでください。"]
[]
[null,"4-1-2.(4-1-1で①を回答した場合)\n１回あたりの連続無監視時間はどの程度許容できるか記載してください。（自由記述）"]
[]
[]
[null,"4-1-3.無監視時間を無くすために補助回線を使用する際、補助回線に求める最低限の性能について選択してください。(プルダウン選択)"]
[]
[null,null,"①主回線と同等"]
[null,null,"②収集周期を長くして全点監視継続"]
[null,null,"③10～20％程度の信号数に絞って監視継続"]
[null,null,"④補助回線は不要"]
[null,null,"⑤わからない"]
[]
[null,"4-1-4.(4-1-3で回答した理由)を記載してください。（自由記述）"]
[]
["【4-1.回答欄】"]
["施設名(代表的な施設5ヵ所)",null,null,null,null,null,null,"4-1-1",null,"4-1-2\n(4-1-1で①と回答)",null,null,"4-1-3",null,"4-1-4(自由記述)\n(4-1-3の回答理由を記載)",null,null,null,null,null,null,null,null,null,"4-1-1.選択肢"]
["例1","（回答例）\n〇〇浄水場",null,null,null,null,null,"②",null,null,null,null,"①",null,"基幹施設の為",null,null,null,null,null,null,null,null,null,"①許容できる"]
[null,null,null,null,null,null,null,null,null,null,null,null,null,null,null,null,null,null,null,null,null,null,null,null,"②許容できない"]
["例2","(回答例)\n△△浄水場",null,null,null,null,null,"①",null,"1日",null,null,"④",null,"現場に人員が常時配置されている為",null,null,null,null,null,null,null,null,null,"③わからない"]
[]
["例3","(回答例)\n□□ポンプ所",null,null,null,null,null,"①",null,"6時間",null,null,"②",null,"短い周期で信号を監視する必要性が低い為"]
[]
[1,null,null,null,null,null,null,null,null,null,null,null,null,null,null,null,null,null,null,null,null,null,null,null,null,null,null,null,null,null,null,null,null,null,null,null,null,null,null,null,null,null,null,null,null,null,null,null,null,null,null,null,null,{"$f":"B35","v":0},null,null,null,null,null,{"$f":"IF(H35=\"①\",1,IF(H35=\"②\",2,IF(H35=\"③\",3,\"\")))","v":""},null,{"$f":"J35","v":0},null,null,{"$f":"IF(M35=\"①\",1,IF(M35=\"②\",2,IF(M35=\"③\",3,IF(M35=\"④\",4,IF(M35=\"⑤\",5,\"\")))))","v":""},null,"(自由記述)"]
[]
[2,null,null,null,null,null,null,null,null,null,null,null,null,null,null,null,null,null,null,null,null,null,null,null,"4-1-3.選択肢",null,null,null,null,null,null,null,null,null,null,null,null,null,null,null,null,null,null,null,null,null,null,null,null,null,null,null,null,{"$f":"B37","v":0},null,null,null,null,null,{"$f":"IF(H37=\"①\",1,IF(H37=\"②\",2,IF(H37=\"③\",3,\"\")))","v":""},null,{"$f":"J37","v":0},null,null,{"$f":"IF(M37=\"①\",1,IF(M37=\"②\",2,IF(M37=\"③\",3,IF(M37=\"④\",4,IF(M37=\"⑤\",5,\"\")))))","v":""},null,"(自由記述"]
[null,null,null,null,null,null,null,null,null,null,null,null,null,null,null,null,null,null,null,null,null,null,null,null,"①主回線と同等"]
[3,null,null,null,null,null,null,null,null,null,null,null,null,null,null,null,null,null,null,null,null,null,null,null,"②収集周期を長くして全点監視継続",null,null,null,null,null,null,null,null,null,null,null,null,null,null,null,null,null,null,null,null,null,null,null,null,null,null,null,null,{"$f":"B39","v":0},null,null,null,null,null,{"$f":"IF(H39=\"①\",1,IF(H39=\"②\",2,IF(H39=\"③\",3,\"\")))","v":""},null,{"$f":"J39","v":0},null,null,{"$f":"IF(M39=\"①\",1,IF(M39=\"②\",2,IF(M39=\"③\",3,IF(M39=\"④\",4,IF(M39=\"⑤\",5,\"\")))))","v":""},null,"(自由記述)"]
[null,null,null,null,null,null,null,null,null,null,null,null,null,null,null,null,null,null,null,null,null,null,null,null,"③10～20％程度の信号数に絞って監視継続"]
[4,null,null,null,null,null,null,null,null,null,null,null,null,null,null,null,null,null,null,null,null,null,null,null,"④補助回線は不要",null,null,null,null,null,null,null,null,null,null,null,null,null,null,null,null,null,null,null,null,null,null,null,null,null,null,null,null,{"$f":"B41","v":0},null,null,null,null,null,{"$f":"IF(H41=\"①\",1,IF(H41=\"②\",2,IF(H41=\"③\",3,\"\")))","v":""},null,{"$f":"J41","v":0},null,null,{"$f":"IF(M41=\"①\",1,IF(M41=\"②\",2,IF(M41=\"③\",3,IF(M41=\"④\",4,IF(M41=\"⑤\",5,\"\")))))","v":""},null,"(自由記述)"]
[null,null,null,null,null,null,null,null,null,null,null,null,null,null,null,null,null,null,null,null,null,null,null,null,"⑤わからない"]
[5,null,null,null,null,null,null,null,null,null,null,null,null,null,null,null,null,null,null,null,null,null,null,null,null,null,null,null,null,null,null,null,null,null,null,null,null,null,null,null,null,null,null,null,null,null,null,null,null,null,null,null,null,{"$f":"B43","v":0},null,null,null,null,null,{"$f":"IF(H43=\"①\",1,IF(H43=\"②\",2,IF(H43=\"③\",3,\"\")))","v":""},null,{"$f":"J43","v":0},null,null,{"$f":"IF(M43=\"①\",1,IF(M43=\"②\",2,IF(M43=\"③\",3,IF(M43=\"④\",4,IF(M43=\"⑤\",5,\"\")))))","v":""},null,"(自由記述)"]
[]
[]
["4-2.システムのマルチベンダー化について、実現したいシステム構成を選択してください。\n(複数回答可)\n(※各選択肢の図解は下記システム構成図を参照してください。)"]
[]
[]
[]
[]
[]
[]
[]
[]
[]
[]
[]
[]
[]
[]
[]
[]
[]
[]
[]
[]
[null,null,"①クラウド型監視制御システムとオンプレ型監視制御システムを異なるメーカのシステムで構築",null,null,null,null,null,null,null,null,null,null,null,null,null,null,null,null,null,null,null,null,null,null,null,null,null,null,null,null,null,null,null,null,null,null,null,null,null,null,null,null,null,null,null,null,null,false,{"$f":"N(AW67)","v":0}]
[]
[null,null,"②異なるメーカで構築された2拠点(以上)の監視制御システムを\n  別の統合監視システムで統合管理",null,null,null,null,null,null,null,null,null,null,null,null,null,null,null,null,null,null,null,null,null,null,null,null,null,null,null,null,null,null,null,null,null,null,null,null,null,null,null,null,null,null,null,null,null,false,{"$f":"N(AW69)","v":0}]
[]
[null,null,"③異なるメーカのコントローラで監視制御システムを構築(制御LANを共通化)",null,null,null,null,null,null,null,null,null,null,null,null,null,null,null,null,null,null,null,null,null,null,null,null,null,null,null,null,null,null,null,null,null,null,null,null,null,null,null,null,null,null,null,null,null,false,0]
[null,null,"④その他",null,null,null,null,null,null,null,null,null,null,null,null,null,null,null,null,null,null,null,null,null,null,null,null,null,null,null,null,null,null,null,null,null,null,null,null,null,null,null,null,null,null,null,null,null,false,0]
[null,null,null,null,null,null,null,null,null,null,null,null,null,null,null,null,null,null,null,null,null,null,null,null,null,null,null,null,null,null,null,null,null,null,null,null,null,null,null,null,null,null,null,null,null,null,null,null,null,"(自由記述)"]
[]
[null,null,"⑤何れも必要ない",null,null,null,null,null,null,null,null,null,null,null,null,null,null,null,null,null,null,null,null,null,null,null,null,null,null,null,null,null,null,null,null,null,null,null,null,null,null,null,null,null,null,null,null,null,false,{"$f":"N(AW75)","v":0}]
[null,null,"⑥わからない",null,null,null,null,null,null,null,null,null,null,null,null,null,null,null,null,null,null,null,null,null,null,null,null,null,null,null,null,null,null,null,null,null,null,null,null,null,null,null,null,null,null,null,null,null,false,{"$f":"N(AW76)","v":0}]
[]
[null,"4-2-1.(4-2で回答した理由)を記載してください。"]
[null,null,null,null,null,null,null,null,null,null,null,null,null,null,null,null,null,null,null,null,null,null,null,null,null,null,null,null,null,null,null,null,null,null,null,null,null,null,null,null,null,null,null,null,null,null,null,null,null,"(自由記述)"]

{"sheet":"5_セキュリティ","index":6,"n_rows":77,"n_cols":50,"rows_kept":77,"cut":false,"hidden":false,"merged":[[15,2,16,22],[17,2,18,22],[22,1,22,22],[28,0,29,22],[0,0,0,22],[14,2,14,22],[13,1,13,22],[2,0,2,22],[10,0,10,22],[93,0,93,1],[59,0,59,22],[32,1,32,22],[75,1,75,22],[39,1,39,22],[54,1,54,22],[62,1,62,22],[67,1,67,22],[72,0,72,22],[45,0,46,22]]}
["【５.監視システムにおけるセキュリティについてのヒアリング項目】"]
[]
["5-1.現在行っているセキュリティ対策について選択してください。(複数回答可)"]
[null,null,"①詳細把握していない",null,null,null,null,null,null,null,null,null,null,null,null,null,null,null,null,null,null,null,null,null,null,null,null,null,null,null,null,null,null,null,null,null,null,null,null,null,null,null,null,null,null,null,null,null,false,{"$f":"N(AW4)","v":0}]
[null,null,"②ログイン認証、生体認証、パスワード",null,null,null,null,null,null,null,null,null,null,null,null,null,null,null,null,null,null,null,null,null,null,null,null,null,null,null,null,null,null,null,null,null,null,null,null,null,null,null,null,null,null,null,null,null,false,{"$f":"N(AW5)","v":0}]
[null,null,"③ホワイトリスト方式、ファイヤーウォール",null,null,null,null,null,null,null,null,null,null,null,null,null,null,null,null,null,null,null,null,null,null,null,null,null,null,null,null,null,null,null,null,null,null,null,null,null,null,null,null,null,null,null,null,null,false,0]
[null,null,"④警備会社による防犯対策、ドアロック等の物理的セキュリティ対策",null,null,null,null,null,null,null,null,null,null,null,null,null,null,null,null,null,null,null,null,null,null,null,null,null,null,null,null,null,null,null,null,null,null,null,null,null,null,null,null,null,null,null,null,null,false,0]
[null,null,"⑤その他",null,null,null,null,null,null,null,null,null,null,null,null,null,null,null,null,null,null,null,null,null,null,null,null,null,null,null,null,null,null,null,null,null,null,null,null,null,null,null,null,null,null,null,null,null,false,0]
[null,null,null,null,null,null,null,null,null,null,null,null,null,null,null,null,null,null,null,null,null,null,null,null,null,null,null,null,null,null,null,null,null,null,null,null,null,null,null,null,null,null,null,null,null,null,null,null,null,"(自由記述)"]
[]
["5-2.異常発生時のオンコール契約の有無を選択してください。"]
[null,null,"①契約有り",null,null,null,null,null,null,null,null,null,null,null,null,null,null,null,null,null,null,null,null,null,null,null,null,null,null,null,null,null,null,null,null,null,null,null,null,null,null,null,null,null,null,null,null,null,null,0]
[null,null,"②契約無し"]
[null,"5-2-1.(5-2で①を回答した場合)現在契約されている契約内容を選択してください。"]
[null,null,"① 年間契約(時間制約なし) 出動回数制限なし",null,null,null,null,null,null,null,null,null,null,null,null,null,null,null,null,null,null,null,null,null,null,null,null,null,null,null,null,null,null,null,null,null,null,null,null,null,null,null,null,null,null,null,null,null,null,0]
[null,null,"② 年間〇回契約(時間制約なし)契約回数以上の場合は別途費用要\n　 契約回数以下の場合は減額"]
[]
[null,null,"③ 月〇回契約(9:00~17:00)契約回数以上の場合は別途費用要、\n　 契約回数以下の場合は減額"]
[]
[null,null,"④その他"]
[null,null,null,null,null,null,null,null,null,null,null,null,null,null,null,null,null,null,null,null,null,null,null,null,null,null,null,null,null,null,null,null,null,null,null,null,null,null,null,null,null,null,null,null,null,null,null,null,null,"(自由記述)"]
[]
[null,"5-2-2.(5-2で②を回答した場合)ｵﾝｺｰﾙ契約を行っていない理由を選択してください。"]
[null,null,"① オンコール契約の必要性を有していない",null,null,null,null,null,null,null,null,null,null,null,null,null,null,null,null,null,null,null,null,null,null,null,null,null,null,null,null,null,null,null,null,null,null,null,null,null,null,null,null,null,null,null,null,null,null,0]
[null,null,"② 予算、運用体制などの要因"]
[null,null,"③その他"]
[null,null,null,null,null,null,null,null,null,null,null,null,null,null,null,null,null,null,null,null,null,null,null,null,null,null,null,null,null,null,null,null,null,null,null,null,null,null,null,null,null,null,null,null,null,null,null,null,null,"(自由記述)"]
[]
["5-3.セキュリティ起因によるシステムエラー発生時の体制の確立の有無を選択してください。\n(※ここでのシステムエラーとはセキュリティ起因の問題のみとします。)"]
[]
[null,null,"①体制有り",null,null,null,null,null,null,null,null,null,null,null,null,null,null,null,null,null,null,null,null,null,null,null,null,null,null,null,null,null,null,null,null,null,null,null,null,null,null,null,null,null,null,null,null,null,null,0]
[null,null,"②体制無し"]
[null,"5-3-1.(5-3.で①を回答した場合)現状の対応体制を選択してください。"]
[null,null,"①システムによる関係者一斉通知（メール、電話）",null,null,null,null,null,null,null,null,null,null,null,null,null,null,null,null,null,null,null,null,null,null,null,null,null,null,null,null,null,null,null,null,null,null,null,null,null,null,null,null,null,null,null,null,null,null,0]
[null,null,"②専任部署、専任担当者が対応"]
[null,null,"③当番制（発生時は連絡網による電話連絡）"]
[null,null,"④その他"]
[null,null,null,null,null,null,null,null,null,null,null,null,null,null,null,null,null,null,null,null,null,null,null,null,null,null,null,null,null,null,null,null,null,null,null,null,null,null,null,null,null,null,null,null,null,null,null,null,null,"(自由記述)"]
[]
[null,"5-3-2.(5-3.で②を回答した場合)体制を構築できない理由を選択してください。"]
[null,null,"①人手不足",null,null,null,null,null,null,null,null,null,null,null,null,null,null,null,null,null,null,null,null,null,null,null,null,null,null,null,null,null,null,null,null,null,null,null,null,null,null,null,null,null,null,null,null,null,null,0]
[null,null,"②予算の問題"]
[null,null,"③その他"]
[null,null,null,null,null,null,null,null,null,null,null,null,null,null,null,null,null,null,null,null,null,null,null,null,null,null,null,null,null,null,null,null,null,null,null,null,null,null,null,null,null,null,null,null,null,null,null,null,null,"(自由記述)"]
[]
["5-4.普段の維持管理業務で外部からのウィルスに対して特に対策を行っているか選択してください。"]
[]
[null,null,"①はい",null,null,null,null,null,null,null,null,null,null,null,null,null,null,null,null,null,null,null,null,null,null,null,null,null,null,null,null,null,null,null,null,null,null,null,null,null,null,null,null,null,null,null,null,null,null,0]
[null,null,"②いいえ"]
[null,"5-4-1. (5-4.で①を回答した場合)特に留意されている内容について記載してください。"]
[null,null,null,null,null,null,null,null,null,null,null,null,null,null,null,null,null,null,null,null,null,null,null,null,null,null,null,null,null,null,null,null,null,null,null,null,null,null,null,null,null,null,null,null,null,null,null,null,null,"(自由記述)"]
[]
[]
[]
[null,"5-4-2. (5-4.で②を回答した場合)特に留意されていない理由について記載してください。"]
[null,null,null,null,null,null,null,null,null,null,null,null,null,null,null,null,null,null,null,null,null,null,null,null,null,null,null,null,null,null,null,null,null,null,null,null,null,null,null,null,null,null,null,null,null,null,null,null,null,"(自由記述)"]
[]
[]
[]
["5-5.ウィルスに感染した際の報告、連絡体制は確立されているか選択してください。"]
[null,null,"①はい",null,null,null,null,null,null,null,null,null,null,null,null,null,null,null,null,null,null,null,null,null,null,null,null,null,null,null,null,null,null,null,null,null,null,null,null,null,null,null,null,null,null,null,null,null,null,0]
[null,null,"②いいえ"]
[null,"5-5-1. (5-5.で①を回答した場合)感染時の体制について記載してください。"]
[null,null,null,null,null,null,null,null,null,null,null,null,null,null,null,null,null,null,null,null,null,null,null,null,null,null,null,null,null,null,null,null,null,null,null,null,null,null,null,null,null,null,null,null,null,null,null,null,null,"(自由記述)"]
[]
[]
[]
[null,"5-5-2. (5-5.で②を回答した場合)体制を構築出来ない理由を記載してください。"]
[null,null,null,null,null,null,null,null,null,null,null,null,null,null,null,null,null,null,null,null,null,null,null,null,null,null,null,null,null,null,null,null,null,null,null,null,null,null,null,null,null,null,null,null,null,null,null,null,null,"(自由記述)"]
[]
[]
[]
["5-6.セキュリティの観点から監視装置の選定を行う事はありますか。ｵﾝﾌﾟﾚﾐｽ型、ｸﾗｳﾄﾞ型など）"]
[null,null,"①はい",null,null,null,null,null,null,null,null,null,null,null,null,null,null,null,null,null,null,null,null,null,null,null,null,null,null,null,null,null,null,null,null,null,null,null,null,null,null,null,null,null,null,null,null,null,null,0]
[null,null,"②いいえ"]
[null,"5-6-1. (5-6.で①を回答した場合)特に重視される点について記載してください。"]
[null,null,null,null,null,null,null,null,null,null,null,null,null,null,null,null,null,null,null,null,null,null,null,null,null,null,null,null,null,null,null,null,null,null,null,null,null,null,null,null,null,null,null,null,null,null,null,null,null,"(自由記述)"]

{"sheet":"6_ソリューション","index":7,"n_rows":236,"n_cols":71,"rows_kept":236,"cut":false,"hidden":false,"merged":[[59,0,60,22],[235,33,235,34],[235,35,235,36],[235,1,235,3],[235,4,235,10],[235,11,235,12],[235,13,235,14],[235,15,235,16],[235,17,235,18],[235,19,235,20],[233,27,233,28],[233,29,233,30],[233,31,233,32],[233,23,233,24],[233,25,233,26],[235,25,235,26],[235,27,235,28],[235,29,235,30],[235,31,235,32],[235,21,235,22],[235,23,235,24],[233,33,233,34],[233,35,233,36],[234,1,234,3],[234,27,234,28],[234,29,234,30],[234,31,234,32],[234,33,234,34],[234,35,234,36],[233,4,233,10],[233,11,233,12],[233,13,233,14],[233,15,233,16],[233,17,233,18],[233,19,233,20],[233,21,233,22],[234,4,234,10],[234,11,234,12],[234,13,234,14],[234,15,234,16],[234,17,234,18],[234,19,234,20],[234,21,234,22],[234,23,234,24],[234,25,234,26],[231,35,231,36],[232,1,232,3],[232,4,232,10],[232,11,232,12],[232,13,232,14],[232,15,232,16],[232,17,232,18],[232,19,232,20],[232,21,232,22],[232,23,232,24],[232,25,232,26],[232,27,232,28],[232,29,232,30],[232,31,232,32],[232,33,232,34],[232,35,232,36],[231,1,231,3],[231,4,231,10],[231,11,231,12],[230,31,230,32],[230,33,230,34],[231,13,231,14],[231,15,231,16],[231,17,231,18],[231,19,231,20],[231,21,231,22],[231,23,231,24],[230,13,230,14],[230,15,230,16],[230,17,230,18],[230,19,230,20],[230,21,230,22],[230,23,230,24],[231,25,231,26],[231,27,231,28],[231,29,231,30],[231,31,231,32],[231,33,231,34],[230,35,230,36],[229,35,229,36],[219,11,219,18],[219,19,219,20],[219,21,219,24],[219,25,219,28],[219,29,219,32],[219,33,219,36],[227,33,227,34],[227,35,227,36],[225,35,225,36],[224,11,224,12],[224,13,224,14],[224,15,224,16],[224,17,224,18],[224,19,224,20],[224,21,224,22],[224,23,224,24],[221,35,221,36],[229,27,229,30],[229,31,229,34],[230,25,230,26],[230,27,230,28],[230,29,230,30],[219,37,219,40],[219,0,219,10],[227,39,227,40],[227,21,227,22],[227,23,227,24],[227,25,227,26],[227,27,227,28],[227,29,227,30],[227,31,227,32],[220,4,220,10],[221,4,221,10],[222,4,222,10],[223,4,223,10],[224,39,224,40],[227,37,227,38],[225,39,225,40],[226,11,226,12],[226,13,226,14],[226,15,226,16],[226,17,226,18],[226,19,226,20],[226,21,226,22],[226,23,226,24],[226,25,226,26],[226,27,226,28],[226,29,226,30],[226,31,226,32],[226,33,226,34],[226,35,226,36],[226,37,226,38],[226,39,226,40],[225,21,225,22],[225,23,225,24],[225,25,225,26],[225,27,225,28],[225,29,225,30],[225,31,225,32],[225,33,225,34],[222,25,222,26],[222,27,222,28],[222,29,222,30],[222,31,222,32],[222,33,222,34],[222,35,222,36],[222,37,222,38],[222,39,222,40],[225,37,225,38],[223,25,223,26],[223,27,223,28],[223,29,223,30],[223,31,223,32],[223,33,223,34],[223,35,223,36],[223,37,223,38],[223,39,223,40],[224,25,224,26],[224,27,224,28],[224,29,224,30],[224,31,224,32],[224,33,224,34],[224,35,224,36],[224,37,224,38],[224,4,224,10],[225,4,225,10],[226,1,226,3],[226,4,226,10],[227,1,227,3],[227,4,227,10],[220,1,220,3],[225,1,225,3],[223,23,223,24],[220,17,220,18],[220,19,220,20],[220,21,220,22],[220,23,220,24],[222,11,222,12],[222,13,222,14],[222,15,222,16],[222,17,222,18],[222,19,222,20],[222,21,222,22],[222,23,222,24],[220,35,220,36],[220,37,220,38],[220,39,220,40],[221,11,221,12],[221,13,221,14],[221,15,221,16],[221,17,221,18],[221,19,221,20],[221,21,221,22],[221,23,221,24],[221,25,221,26],[221,27,221,28],[221,29,221,30],[221,31,221,32],[221,33,221,34],[220,11,220,12],[220,13,220,14],[220,15,220,16],[220,27,220,28],[221,37,221,38],[221,39,221,40],[215,0,217,22],[159,1,159,8],[159,9,159,22],[233,1,233,3],[227,19,227,20],[225,11,225,12],[225,13,225,14],[230,1,230,3],[230,4,230,10],[230,11,230,12],[229,11,229,20],[229,21,229,26],[220,25,220,26],[225,15,225,16],[225,17,225,18],[225,19,225,20],[227,11,227,12],[227,13,227,14],[227,15,227,16],[227,17,227,18],[172,1,174,8],[175,1,177,8],[199,9,201,22],[202,9,204,22],[144,1,144,10],[5,0,5,22],[221,1,221,3],[223,11,223,12],[223,13,223,14],[223,15,223,16],[223,17,223,18],[223,19,223,20],[223,21,223,22],[129,0,130,22],[156,0,157,22],[152,1,152,10],[153,1,153,10],[154,1,154,10],[160,1,162,8],[163,1,165,8],[166,1,168,8],[169,1,171,8],[123,14,123,18],[124,14,124,18],[125,14,125,18],[126,14,126,18],[127,14,127,18],[127,1,127,13],[124,1,124,13],[125,1,125,13],[126,1,126,13],[121,1,121,13],[122,1,122,13],[110,14,110,18],[111,14,111,18],[112,14,112,18],[113,14,113,18],[114,14,114,18],[115,14,115,18],[116,14,116,18],[110,1,110,13],[111,1,111,13],[112,1,112,13],[113,1,113,13],[114,1,114,13],[115,1,115,13],[116,1,116,13],[117,1,117,13],[118,1,118,13],[120,14,120,18],[121,14,121,18],[122,14,122,18],[229,0,229,10],[0,0,0,22],[2,0,2,22],[70,0,71,22],[82,0,82,22],[102,0,103,22],[117,14,117,18],[118,14,118,18],[119,14,119,18],[109,1,109,13],[109,14,109,18],[7,0,7,22],[11,0,11,22],[20,0,20,22],[24,0,24,22],[33,0,33,22],[44,0,44,22],[48,0,48,22],[52,0,52,22],[93,0,93,22],[119,1,119,13],[120,1,120,13],[123,1,123,13],[205,9,207,22],[208,9,210,22],[211,9,213,22],[178,1,180,8],[181,1,183,8],[184,1,186,8],[187,1,189,8],[190,1,192,8],[193,1,195,8],[196,1,198,8],[199,1,201,8],[202,1,204,8],[172,9,174,22],[175,9,177,22],[178,9,180,22],[181,9,183,22],[184,9,186,22],[187,9,189,22],[190,9,192,22],[193,9,195,22],[196,9,198,22],[145,1,145,10],[146,1,146,10],[147,1,147,10],[148,1,148,10],[149,1,149,10],[150,1,150,10],[151,1,151,10],[219,53,219,54],[136,11,136,21],[136,1,136,10],[137,1,137,10],[138,1,138,10],[139,1,139,10],[140,1,140,10],[141,1,141,10],[142,1,142,10],[143,1,143,10],[205,1,207,8],[208,1,210,8],[211,1,213,8],[160,9,162,22],[163,9,165,22],[166,9,168,22],[169,9,171,22],[219,68,219,69],[230,53,235,53],[227,88,227,89],[225,88,225,89],[226,88,226,89],[223,88,223,89],[224,88,224,89],[221,88,221,89],[222,88,222,89],[220,53,227,53],[220,88,220,89],[229,55,229,59],[229,60,229,62],[229,63,229,64],[229,65,229,66],[229,53,229,54],[219,55,219,58],[219,60,219,61],[219,62,219,63],[219,64,219,65],[219,66,219,67],[220,0,227,0],[230,0,235,0],[219,41,219,42],[229,37,229,38],[230,37,230,38],[231,37,231,38],[232,37,232,38],[233,37,233,38],[234,37,234,38],[235,37,235,38],[220,41,220,42],[221,41,221,42],[222,41,222,42],[223,41,223,42],[224,41,224,42],[225,41,225,42],[226,41,226,42],[227,41,227,42],[220,29,220,30],[222,1,222,3],[223,1,223,3],[224,1,224,3],[220,31,220,32],[220,33,220,34]]}
["【６.ソリューションについてのヒアリング項目】"]
[]
["6-1.広域で通信回線にて接続されたシステムがあれば有用だと思いますか。"]
[null,null,"①はい",null,null,null,null,null,null,null,null,null,null,null,null,null,null,null,null,null,null,null,null,null,null,null,null,null,null,null,null,null,null,null,null,null,null,null,null,null,null,null,null,null,null,null,null,null,null,0]
[null,null,"②いいえ"]
["「②いいえ」と回答した方は設問6-13に進んでください。"]
[]
["6-2.(6-1.で①を回答した場合)システムの用途を記載してください。"]
[null,null,null,null,null,null,null,null,null,null,null,null,null,null,null,null,null,null,null,null,null,null,null,null,null,null,null,null,null,null,null,null,null,null,null,null,null,null,null,null,null,null,null,null,null,null,null,null,null,"(自由記述)"]
[]
[]
["6-3.(6-1.で①を回答した場合)システムの導入目的を選択してください。(複数回答可)"]
[null,null,"①業務の効率化・省力化",null,null,null,null,null,null,null,null,null,null,null,null,null,null,null,null,null,null,null,null,null,null,null,null,null,null,null,null,null,null,null,null,null,null,null,null,null,null,null,null,null,null,null,null,null,false,{"$f":"N(AW13)","v":0}]
[null,null,"②業務の正確さ・安全性の向上",null,null,null,null,null,null,null,null,null,null,null,null,null,null,null,null,null,null,null,null,null,null,null,null,null,null,null,null,null,null,null,null,null,null,null,null,null,null,null,null,null,null,null,null,null,false,{"$f":"N(AW14)","v":0}]
[null,null,"③住民サービスの向上",null,null,null,null,null,null,null,null,null,null,null,null,null,null,null,null,null,null,null,null,null,null,null,null,null,null,null,null,null,null,null,null,null,null,null,null,null,null,null,null,null,null,null,null,null,false,0]
[null,null,"④情報基盤整備",null,null,null,null,null,null,null,null,null,null,null,null,null,null,null,null,null,null,null,null,null,null,null,null,null,null,null,null,null,null,null,null,null,null,null,null,null,null,null,null,null,null,null,null,null,false,0]
[null,null,"⑤労働環境の向上",null,null,null,null,null,null,null,null,null,null,null,null,null,null,null,null,null,null,null,null,null,null,null,null,null,null,null,null,null,null,null,null,null,null,null,null,null,null,null,null,null,null,null,null,null,false,0]
[null,null,"⑥その他",null,null,null,null,null,null,null,null,null,null,null,null,null,null,null,null,null,null,null,null,null,null,null,null,null,null,null,null,null,null,null,null,null,null,null,null,null,null,null,null,null,null,null,null,null,false,0]
[null,null,null,null,null,null,null,null,null,null,null,null,null,null,null,null,null,null,null,null,null,null,null,null,null,null,null,null,null,null,null,null,null,null,null,null,null,null,null,null,null,null,null,null,null,null,null,null,null,"(自由記述)"]
[]
["6-4.特に通信（統合）したい情報（データ）を記載してください。"]
[null,null,null,null,null,null,null,null,null,null,null,null,null,null,null,null,null,null,null,null,null,null,null,null,null,null,null,null,null,null,null,null,null,null,null,null,null,null,null,null,null,null,null,null,null,null,null,null,null,"(自由記述)"]
[]
[]
["6-5.導入する場合、総構築費用の想定額を選択してください。"]
[null,null,"①500万円未満",null,null,null,null,null,null,null,null,null,null,null,null,null,null,null,null,null,null,null,null,null,null,null,null,null,null,null,null,null,null,null,null,null,null,null,null,null,null,null,null,null,null,null,null,null,null,0]
[null,null,"②500万～1,000万円未満"]
[null,null,"③1,000万～5,000万円未満"]
[null,null,"④5,000万円～1億円未満"]
[null,null,"⑤1億～5億円未満"]
[null,null,"⑥5億円以上"]
[null,null,"⑦わからない・回答できない"]
[]
["6-6.導入した場合、年間運用費用の想定額を選択してください。"]
[null,null,"①100万円未満",null,null,null,null,null,null,null,null,null,null,null,null,null,null,null,null,null,null,null,null,null,null,null,null,null,null,null,null,null,null,null,null,null,null,null,null,null,null,null,null,null,null,null,null,null,null,0]
[null,null,"②100万～300万円未満"]
[null,null,"③300万～500万円未満"]
[null,null,"④500万～1,000万円未満"]
[null,null,"⑤1,000万～5,000万円未満"]
[null,null,"⑥5,000万～1億円未満"]
[null,null,"⑦1億～5億円未満"]
[null,null,"⑧5億円以上"]
[null,null,"⑨わからない・回答できない"]
[]
["6-7.導入する場合、組織の見直しは必要ですか。"]
[null,null,"①はい",null,null,null,null,null,null,null,null,null,null,null,null,null,null,null,null,null,null,null,null,null,null,null,null,null,null,null,null,null,null,null,null,null,null,null,null,null,null,null,null,null,null,null,null,null,null,0]
[null,null,"②いいえ"]
[]
["6-8.導入する場合、業務の見直し（内容，書類等）は必要ですか。"]
[null,null,"①はい",null,null,null,null,null,null,null,null,null,null,null,null,null,null,null,null,null,null,null,null,null,null,null,null,null,null,null,null,null,null,null,null,null,null,null,null,null,null,null,null,null,null,null,null,null,null,0]
[null,null,"②いいえ"]
[]
["6-9.導入を検討されている時期を選択してください。"]
[null,null,"①1年以内",null,null,null,null,null,null,null,null,null,null,null,null,null,null,null,null,null,null,null,null,null,null,null,null,null,null,null,null,null,null,null,null,null,null,null,null,null,null,null,null,null,null,null,null,null,null,0]
[null,null,"②1～2年"]
[null,null,"③3～4年"]
[null,null,"④5年以上先"]
[null,null,"⑤わからない"]
[]
["6-10.計画するにあたり、技術上の問題点の有無と、具体的な問題点を選択してください。\n(複数回答可)"]
[]
[null,null,"①特になし",null,null,null,null,null,null,null,null,null,null,null,null,null,null,null,null,null,null,null,null,null,null,null,null,null,null,null,null,null,null,null,null,null,null,null,null,null,null,null,null,null,null,null,null,null,false,{"$f":"N(AW62)","v":0}]
[null,null,"②機器の性能が不足",null,null,null,null,null,null,null,null,null,null,null,null,null,null,null,null,null,null,null,null,null,null,null,null,null,null,null,null,null,null,null,null,null,null,null,null,null,null,null,null,null,null,null,null,null,false,{"$f":"N(AW63)","v":0}]
[null,null,"③セキュリティに不安がある",null,null,null,null,null,null,null,null,null,null,null,null,null,null,null,null,null,null,null,null,null,null,null,null,null,null,null,null,null,null,null,null,null,null,null,null,null,null,null,null,null,null,null,null,null,false,0]
[null,null,"④システムの信頼性に不安がある",null,null,null,null,null,null,null,null,null,null,null,null,null,null,null,null,null,null,null,null,null,null,null,null,null,null,null,null,null,null,null,null,null,null,null,null,null,null,null,null,null,null,null,null,null,false,0]
[null,null,"⑤メーカ、機種ごとにソフトウェアやデータの互換性がない",null,null,null,null,null,null,null,null,null,null,null,null,null,null,null,null,null,null,null,null,null,null,null,null,null,null,null,null,null,null,null,null,null,null,null,null,null,null,null,null,null,null,null,null,null,false,0]
[null,null,"⑥技術内容がよく分からない",null,null,null,null,null,null,null,null,null,null,null,null,null,null,null,null,null,null,null,null,null,null,null,null,null,null,null,null,null,null,null,null,null,null,null,null,null,null,null,null,null,null,null,null,null,false,0]
[null,null,"⑦その他",null,null,null,null,null,null,null,null,null,null,null,null,null,null,null,null,null,null,null,null,null,null,null,null,null,null,null,null,null,null,null,null,null,null,null,null,null,null,null,null,null,null,null,null,null,false,0]
[null,null,null,null,null,null,null,null,null,null,null,null,null,null,null,null,null,null,null,null,null,null,null,null,null,null,null,null,null,null,null,null,null,null,null,null,null,null,null,null,null,null,null,null,null,null,null,null,null,"(自由記述)"]
[]
["6-11.計画するにあたり、システム構築環境上の問題点の有無と、具体的な問題点を選択してください。(複数回答可)"]
[]
[null,null,"①特になし",null,null,null,null,null,null,null,null,null,null,null,null,null,null,null,null,null,null,null,null,null,null,null,null,null,null,null,null,null,null,null,null,null,null,null,null,null,null,null,null,null,null,null,null,null,false,{"$f":"N(AW73)","v":0}]
[null,null,"②導入費用が高価",null,null,null,null,null,null,null,null,null,null,null,null,null,null,null,null,null,null,null,null,null,null,null,null,null,null,null,null,null,null,null,null,null,null,null,null,null,null,null,null,null,null,null,null,null,false,{"$f":"N(AW74)","v":0}]
[null,null,"③運用費用が高価",null,null,null,null,null,null,null,null,null,null,null,null,null,null,null,null,null,null,null,null,null,null,null,null,null,null,null,null,null,null,null,null,null,null,null,null,null,null,null,null,null,null,null,null,null,false,0]
[null,null,"④効果がよく分からない",null,null,null,null,null,null,null,null,null,null,null,null,null,null,null,null,null,null,null,null,null,null,null,null,null,null,null,null,null,null,null,null,null,null,null,null,null,null,null,null,null,null,null,null,null,false,0]
[null,null,"⑤職員や組合、関連組織のコンセンサスが得にくい",null,null,null,null,null,null,null,null,null,null,null,null,null,null,null,null,null,null,null,null,null,null,null,null,null,null,null,null,null,null,null,null,null,null,null,null,null,null,null,null,null,null,null,null,null,false,0]
[null,null,"⑥法制上の問題がある",null,null,null,null,null,null,null,null,null,null,null,null,null,null,null,null,null,null,null,null,null,null,null,null,null,null,null,null,null,null,null,null,null,null,null,null,null,null,null,null,null,null,null,null,null,false,0]
[null,null,"⑦専門技術者の育成が困難",null,null,null,null,null,null,null,null,null,null,null,null,null,null,null,null,null,null,null,null,null,null,null,null,null,null,null,null,null,null,null,null,null,null,null,null,null,null,null,null,null,null,null,null,null,false,0]
[null,null,"⑧その他",null,null,null,null,null,null,null,null,null,null,null,null,null,null,null,null,null,null,null,null,null,null,null,null,null,null,null,null,null,null,null,null,null,null,null,null,null,null,null,null,null,null,null,null,null,false,0]
[null,null,null,null,null,null,null,null,null,null,null,null,null,null,null,null,null,null,null,null,null,null,null,null,null,null,null,null,null,null,null,null,null,null,null,null,null,null,null,null,null,null,null,null,null,null,null,null,null,"(自由記述)"]
[]
["6-12.計画するにあたり、必要な情報を選択してください。(複数回答可)"]
[null,null,"①特になし",null,null,null,null,null,null,null,null,null,null,null,null,null,null,null,null,null,null,null,null,null,null,null,null,null,null,null,null,null,null,null,null,null,null,null,null,null,null,null,null,null,null,null,null,null,false,{"$f":"N(AW84)","v":0}]
[null,null,"②技術情報",null,null,null,null,null,null,null,null,null,null,null,null,null,null,null,null,null,null,null,null,null,null,null,null,null,null,null,null,null,null,null,null,null,null,null,null,null,null,null,null,null,null,null,null,null,false,{"$f":"N(AW85)","v":0}]
[null,null,"③価格情報",null,null,null,null,null,null,null,null,null,null,null,null,null,null,null,null,null,null,null,null,null,null,null,null,null,null,null,null,null,null,null,null,null,null,null,null,null,null,null,null,null,null,null,null,null,false,0]
[null,null,"④導入効果の情報",null,null,null,null,null,null,null,null,null,null,null,null,null,null,null,null,null,null,null,null,null,null,null,null,null,null,null,null,null,null,null,null,null,null,null,null,null,null,null,null,null,null,null,null,null,false,0]
[null,null,"⑤他自治体の事例",null,null,null,null,null,null,null,null,null,null,null,null,null,null,null,null,null,null,null,null,null,null,null,null,null,null,null,null,null,null,null,null,null,null,null,null,null,null,null,null,null,null,null,null,null,false,0]
[null,null,"⑥他分野の事例",null,null,null,null,null,null,null,null,null,null,null,null,null,null,null,null,null,null,null,null,null,null,null,null,null,null,null,null,null,null,null,null,null,null,null,null,null,null,null,null,null,null,null,null,null,false,0]
[null,null,"⑦国際的標準化動向",null,null,null,null,null,null,null,null,null,null,null,null,null,null,null,null,null,null,null,null,null,null,null,null,null,null,null,null,null,null,null,null,null,null,null,null,null,null,null,null,null,null,null,null,null,false,0]
[null,null,"⑧その他",null,null,null,null,null,null,null,null,null,null,null,null,null,null,null,null,null,null,null,null,null,null,null,null,null,null,null,null,null,null,null,null,null,null,null,null,null,null,null,null,null,null,null,null,null,false,0]
[null,null,null,null,null,null,null,null,null,null,null,null,null,null,null,null,null,null,null,null,null,null,null,null,null,null,null,null,null,null,null,null,null,null,null,null,null,null,null,null,null,null,null,null,null,null,null,null,null,"(自由記述)"]
[]
["6-13.(6-1.で②を回答した場合)不要と答えた理由を選択してください。(複数回答可)"]
[null,null,"①構築，運用等の費用がかかり過ぎる",null,null,null,null,null,null,null,null,null,null,null,null,null,null,null,null,null,null,null,null,null,null,null,null,null,null,null,null,null,null,null,null,null,null,null,null,null,null,null,null,null,null,null,null,null,false,{"$f":"N(AW95)","v":0}]
[null,null,"②運用保守が大変",null,null,null,null,null,null,null,null,null,null,null,null,null,null,null,null,null,null,null,null,null,null,null,null,null,null,null,null,null,null,null,null,null,null,null,null,null,null,null,null,null,null,null,null,null,false,{"$f":"N(AW96)","v":0}]
[null,null,"③機能、性能が不満足",null,null,null,null,null,null,null,null,null,null,null,null,null,null,null,null,null,null,null,null,null,null,null,null,null,null,null,null,null,null,null,null,null,null,null,null,null,null,null,null,null,null,null,null,null,false,0]
[null,null,"④効果が明確でない",null,null,null,null,null,null,null,null,null,null,null,null,null,null,null,null,null,null,null,null,null,null,null,null,null,null,null,null,null,null,null,null,null,null,null,null,null,null,null,null,null,null,null,null,null,false,0]
[null,null,"⑤現状の業務体系で十分である",null,null,null,null,null,null,null,null,null,null,null,null,null,null,null,null,null,null,null,null,null,null,null,null,null,null,null,null,null,null,null,null,null,null,null,null,null,null,null,null,null,null,null,null,null,false,0]
[null,null,"⑥その他",null,null,null,null,null,null,null,null,null,null,null,null,null,null,null,null,null,null,null,null,null,null,null,null,null,null,null,null,null,null,null,null,null,null,null,null,null,null,null,null,null,null,null,null,null,false,0]
[null,null,null,null,null,null,null,null,null,null,null,null,null,null,null,null,null,null,null,null,null,null,null,null,null,null,null,null,null,null,null,null,null,null,null,null,null,null,null,null,null,null,null,null,null,null,null,null,null,"(自由記述)"]
[]
["6-14.それぞれの技術・システムについて、現在の実現状況を①～⑤より選択(プルダウンより選択)してください。\n(技術・システムの概要については(別シート❶)を参照下さい。)"]
[]
[null,null,"①実運用している"]
[null,null,"②試験的に運用している"]
[null,null,"③導入を計画中である"]
[null,null,"④導入の計画はない"]
[null,null,"⑤導入したが使用していない"]
[null,"項　目",null,null,null,null,null,null,null,null,null,null,null,null,"実現状況"]
[null,"計画支援技術",null,null,null,null,null,null,null,null,null,null,null,null,null,null,null,null,null,null,null,null,null,null,null,null,null,null,null,null,null,null,null,null,null,null,null,null,null,null,null,null,null,null,null,null,null,null,null,{"$f":"IF(O111=\"①\",1,IF(O111=\"②\",2,IF(O111=\"③\",3,IF(O111=\"④\",4,IF(O111=\"⑤\",5,\"\")))))","v":""}]
[null,"制御向上技術",null,null,null,null,null,null,null,null,null,null,null,null,null,null,null,null,null,null,null,null,null,null,null,null,null,null,null,null,null,null,null,null,null,null,null,null,null,null,null,null,null,null,null,null,null,null,null,{"$f":"IF(O112=\"①\",1,IF(O112=\"②\",2,IF(O112=\"③\",3,IF(O112=\"④\",4,IF(O112=\"⑤\",5,\"\")))))","v":""}]
[null,"安定化技術",null,null,null,null,null,null,null,null,null,null,null,null,null,null,null,null,null,null,null,null,null,null,null,null,null,null,null,null,null,null,null,null,null,null,null,null,null,null,null,null,null,null,null,null,null,null,null,""]
[null,"流入量予測技術",null,null,null,null,null,null,null,null,null,null,null,null,null,null,null,null,null,null,null,null,null,null,null,null,null,null,null,null,null,null,null,null,null,null,null,null,null,null,null,null,null,null,null,null,null,null,null,""]
[null,"異常・故障予兆・劣化診断技術",null,null,null,null,null,null,null,null,null,null,null,null,null,null,null,null,null,null,null,null,null,null,null,null,null,null,null,null,null,null,null,null,null,null,null,null,null,null,null,null,null,null,null,null,null,null,null,""]
[null,"場内無線監視システム",null,null,null,null,null,null,null,null,null,null,null,null,null,null,null,null,null,null,null,null,null,null,null,null,null,null,null,null,null,null,null,null,null,null,null,null,null,null,null,null,null,null,null,null,null,null,null,""]
[null,"公衆回線利用小規模システム",null,null,null,null,null,null,null,null,null,null,null,null,null,null,null,null,null,null,"①実運用している",null,null,null,null,null,null,null,null,null,null,null,null,null,null,null,null,null,null,null,null,null,null,null,null,null,null,null,null,""]
[null,"広域通信技術",null,null,null,null,null,null,null,null,null,null,null,null,null,null,null,null,null,null,"②試験的に運用している",null,null,null,null,null,null,null,null,null,null,null,null,null,null,null,null,null,null,null,null,null,null,null,null,null,null,null,null,""]
[null,"機場統合監視システム",null,null,null,null,null,null,null,null,null,null,null,null,null,null,null,null,null,null,"③導入を計画中である",null,null,null,null,null,null,null,null,null,null,null,null,null,null,null,null,null,null,null,null,null,null,null,null,null,null,null,null,""]
[null,"Web監視システム",null,null,null,null,null,null,null,null,null,null,null,null,null,null,null,null,null,null,"④導入の計画はない",null,null,null,null,null,null,null,null,null,null,null,null,null,null,null,null,null,null,null,null,null,null,null,null,null,null,null,null,""]
[null,"情報公開システム",null,null,null,null,null,null,null,null,null,null,null,null,null,null,null,null,null,null,"⑤導入したが使用していない",null,null,null,null,null,null,null,null,null,null,null,null,null,null,null,null,null,null,null,null,null,null,null,null,null,null,null,null,""]
[null,"配管図管理システム",null,null,null,null,null,null,null,null,null,null,null,null,null,null,null,null,null,null,null,null,null,null,null,null,null,null,null,null,null,null,null,null,null,null,null,null,null,null,null,null,null,null,null,null,null,null,null,""]
[null,"地理情報システム",null,null,null,null,null,null,null,null,null,null,null,null,null,null,null,null,null,null,null,null,null,null,null,null,null,null,null,null,null,null,null,null,null,null,null,null,null,null,null,null,null,null,null,null,null,null,null,""]
[null,"業務間情報共有化技術",null,null,null,null,null,null,null,null,null,null,null,null,null,null,null,null,null,null,null,null,null,null,null,null,null,null,null,null,null,null,null,null,null,null,null,null,null,null,null,null,null,null,null,null,null,null,null,""]
[null,"人材育成支援システム",null,null,null,null,null,null,null,null,null,null,null,null,null,null,null,null,null,null,null,null,null,null,null,null,null,null,null,null,null,null,null,null,null,null,null,null,null,null,null,null,null,null,null,null,null,null,null,""]
[null,"クラウドサービス、Webシステム（監視制御系）",null,null,null,null,null,null,null,null,null,null,null,null,null,null,null,null,null,null,null,null,null,null,null,null,null,null,null,null,null,null,null,null,null,null,null,null,null,null,null,null,null,null,null,null,null,null,null,""]
[null,"クラウドサービス、Webシステム（設備保全系）",null,null,null,null,null,null,null,null,null,null,null,null,null,null,null,null,null,null,null,null,null,null,null,null,null,null,null,null,null,null,null,null,null,null,null,null,null,null,null,null,null,null,null,null,null,null,null,""]
[null,"クラウドサービス、Webシステム（事務系）",null,null,null,null,null,null,null,null,null,null,null,null,null,null,null,null,null,null,null,null,null,null,null,null,null,null,null,null,null,null,null,null,null,null,null,null,null,null,null,null,null,null,null,null,null,null,null,""]
[]
["6-15.それぞれの技術・システムについて、運用時の問題点や導入における課題について①～⑤より選択してください。(複数回答可、該当する番号をクリックしてください)\n(技術・システムの概要については(別シート❶)を参照ください。)"]
[]
[null,null,"①効果が不明"]
[null,null,"②技術内容が不明"]
[null,null,"③費用が高価"]
[null,null,"④維持・運用が困難"]
[null,null,"⑤法制上の問題がある"]
[null,"項　目",null,null,null,null,null,null,null,null,null,"問題点・課題"]
[null,"計画支援技術",null,null,null,null,null,null,null,null,null,null,null,null,null,null,null,null,null,null,null,null,null,null,null,null,null,null,null,null,null,null,null,null,null,null,null,null,null,null,null,null,null,null,null,null,null,null,false,{"$f":"N(AW138)","v":0},false,{"$f":"N(AY138)","v":0},false,{"$f":"N(BA138)","v":0},false,{"$f":"N(BC138)","v":0},false,{"$f":"N(BE138)","v":0}]
[null,"制御向上技術",null,null,null,null,null,null,null,null,null,null,null,null,null,null,null,null,null,null,null,null,null,null,null,null,null,null,null,null,null,null,null,null,null,null,null,null,null,null,null,null,null,null,null,null,null,null,false,{"$f":"N(AW139)","v":0},false,{"$f":"N(AY139)","v":0},false,{"$f":"N(BA139)","v":0},false,{"$f":"N(BC139)","v":0},false,{"$f":"N(BE139)","v":0}]
[null,"安定化技術",null,null,null,null,null,null,null,null,null,null,null,null,null,null,null,null,null,null,null,null,null,null,null,null,null,null,null,null,null,null,null,null,null,null,null,null,null,null,null,null,null,null,null,null,null,null,false,0,false,0,false,0,false,0,false,0]
[null,"流入量予測技術",null,null,null,null,null,null,null,null,null,null,null,null,null,null,null,null,null,null,null,null,null,null,null,null,null,null,null,null,null,null,null,null,null,null,null,null,null,null,null,null,null,null,null,null,null,null,false,0,false,0,false,0,false,0,false,0]
[null,"異常・故障予兆・劣化診断技術",null,null,null,null,null,null,null,null,null,null,null,null,null,null,null,null,null,null,null,null,null,null,null,null,null,null,null,null,null,null,null,null,null,null,null,null,null,null,null,null,null,null,null,null,null,null,false,0,false,0,false,0,false,0,false,0]
[null,"場内無線監視システム",null,null,null,null,null,null,null,null,null,null,null,null,null,null,null,null,null,null,null,null,null,null,null,null,null,null,null,null,null,null,null,null,null,null,null,null,null,null,null,null,null,null,null,null,null,null,false,0,false,0,false,0,false,0,false,0]
[null,"公衆回線利用小規模システム",null,null,null,null,null,null,null,null,null,null,null,null,null,null,null,null,null,null,null,null,null,"①効果が不明",null,null,null,null,null,null,null,null,null,null,null,null,null,null,null,null,null,null,null,null,null,null,null,null,false,0,false,0,false,0,false,0,false,0]
[null,"広域通信技術",null,null,null,null,null,null,null,null,null,null,null,null,null,null,null,null,null,null,null,null,null,"②技術内容が不明",null,null,null,null,null,null,null,null,null,null,null,null,null,null,null,null,null,null,null,null,null,null,null,null,false,0,false,0,false,0,false,0,false,0]
[null,"機場統合監視システム",null,null,null,null,null,null,null,null,null,null,null,null,null,null,null,null,null,null,null,null,null,"③費用が高価",null,null,null,null,null,null,null,null,null,null,null,null,null,null,null,null,null,null,null,null,null,null,null,null,false,0,false,0,false,0,false,0,false,0]
[null,"Web監視システム",null,null,null,null,null,null,null,null,null,null,null,null,null,null,null,null,null,null,null,null,null,"④維持・運用が困難",null,null,null,null,null,null,null,null,null,null,null,null,null,null,null,null,null,null,null,null,null,null,null,null,false,0,false,0,false,0,false,0,false,0]
[null,"情報公開システム",null,null,null,null,null,null,null,null,null,null,null,null,null,null,null,null,null,null,null,null,null,"⑤法制上の問題がある",null,null,null,null,null,null,null,null,null,null,null,null,null,null,null,null,null,null,null,null,null,null,null,null,false,0,false,0,false,0,false,0,false,0]
[null,"配管図管理システム",null,null,null,null,null,null,null,null,null,null,null,null,null,null,null,null,null,null,null,null,null,null,null,null,null,null,null,null,null,null,null,null,null,null,null,null,null,null,null,null,null,null,null,null,null,null,false,0,false,0,false,0,false,0,false,0]
[null,"地理情報システム",null,null,null,null,null,null,null,null,null,null,null,null,null,null,null,null,null,null,null,null,null,null,null,null,null,null,null,null,null,null,null,null,null,null,null,null,null,null,null,null,null,null,null,null,null,null,false,0,false,0,false,0,false,0,false,0]
[null,"業務間情報共有化技術",null,null,null,null,null,null,null,null,null,null,null,null,null,null,null,null,null,null,null,null,null,null,null,null,null,null,null,null,null,null,null,null,null,null,null,null,null,null,null,null,null,null,null,null,null,null,false,0,false,0,false,0,false,0,false,0]
[null,"人材育成支援システム",null,null,null,null,null,null,null,null,null,null,null,null,null,null,null,null,null,null,null,null,null,null,null,null,null,null,null,null,null,null,null,null,null,null,null,null,null,null,null,null,null,null,null,null,null,null,false,0,false,0,false,0,false,0,false,0]
[null,"ｸﾗｳﾄﾞｻｰﾋﾞｽ、Webｼｽﾃﾑ（監視制御系）",null,null,null,null,null,null,null,null,null,null,null,null,null,null,null,null,null,null,null,null,null,null,null,null,null,null,null,null,null,null,null,null,null,null,null,null,null,null,null,null,null,null,null,null,null,null,false,0,false,0,false,0,false,0,false,0]
[null,"ｸﾗｳﾄﾞｻｰﾋﾞｽ、Webｼｽﾃﾑ（設備保全系）",null,null,null,null,null,null,null,null,null,null,null,null,null,null,null,null,null,null,null,null,null,null,null,null,null,null,null,null,null,null,null,null,null,null,null,null,null,null,null,null,null,null,null,null,null,null,false,0,false,0,false,0,false,0,false,0]
[null,"ｸﾗｳﾄﾞｻｰﾋﾞｽ、Webｼｽﾃﾑ（事務系）",null,null,null,null,null,null,null,null,null,null,null,null,null,null,null,null,null,null,null,null,null,null,null,null,null,null,null,null,null,null,null,null,null,null,null,null,null,null,null,null,null,null,null,null,null,null,false,0,false,0,false,0,false,0,false,0]
[]
["6-16.それぞれの技術・システムについて、ご意見等がありましたら記載してください。\n(技術・システムの概要については(別シート❶)を参照ください。)"]
[]
[]
[null,"項　目",null,null,null,null,null,null,null,"自由記述"]
[null,"計画支援技術",null,null,null,null,null,null,null,null,null,null,null,null,null,null,null,null,null,null,null,null,null,null,null,null,null,null,null,null,null,null,null,null,null,null,null,null,null,null,null,null,null,null,null,null,null,null,null,"(自由記述)"]
[]
[]
[null,"制御向上技術",null,null,null,null,null,null,null,null,null,null,null,null,null,null,null,null,null,null,null,null,null,null,null,null,null,null,null,null,null,null,null,null,null,null,null,null,null,null,null,null,null,null,null,null,null,null,null,"(自由記述)"]
[]
[]
[null,"安定化技術",null,null,null,null,null,null,null,null,null,null,null,null,null,null,null,null,null,null,null,null,null,null,null,null,null,null,null,null,null,null,null,null,null,null,null,null,null,null,null,null,null,null,null,null,null,null,null,"(自由記述)"]
[]
[]
[null,"流入量予測技術",null,null,null,null,null,null,null,null,null,null,null,null,null,null,null,null,null,null,null,null,null,null,null,null,null,null,null,null,null,null,null,null,null,null,null,null,null,null,null,null,null,null,null,null,null,null,null,"(自由記述)"]
[]
[]
[null,"異常・故障予兆・劣化診断技術",null,null,null,null,null,null,null,null,null,null,null,null,null,null,null,null,null,null,null,null,null,null,null,null,null,null,null,null,null,null,null,null,null,null,null,null,null,null,null,null,null,null,null,null,null,null,null,"(自由記述)"]
[]
[]
[null,"場内無線監視システム",null,null,null,null,null,null,null,null,null,null,null,null,null,null,null,null,null,null,null,null,null,null,null,null,null,null,null,null,null,null,null,null,null,null,null,null,null,null,null,null,null,null,null,null,null,null,null,"(自由記述)"]
[]
[]
[null,"公衆回線利用小規模システム",null,null,null,null,null,null,null,null,null,null,null,null,null,null,null,null,null,null,null,null,null,null,null,null,null,null,null,null,null,null,null,null,null,null,null,null,null,null,null,null,null,null,null,null,null,null,null,"(自由記述)"]
[]
[]
[null,"広域通信技術",null,null,null,null,null,null,null,null,null,null,null,null,null,null,null,null,null,null,null,null,null,null,null,null,null,null,null,null,null,null,null,null,null,null,null,null,null,null,null,null,null,null,null,null,null,null,null,"(自由記述)"]
[]
[]
[null,"機場統合監視システム",null,null,null,null,null,null,null,null,null,null,null,null,null,null,null,null,null,null,null,null,null,null,null,null,null,null,null,null,null,null,null,null,null,null,null,null,null,null,null,null,null,null,null,null,null,null,null,"(自由記述)"]
[]
[]
[null,"Web監視システム",null,null,null,null,null,null,null,null,null,null,null,null,null,null,null,null,null,null,null,null,null,null,null,null,null,null,null,null,null,null,null,null,null,null,null,null,null,null,null,null,null,null,null,null,null,null,null,"(自由記述)"]
[]
[]
[null,"情報公開システム",null,null,null,null,null,null,null,null,null,null,null,null,null,null,null,null,null,null,null,null,null,null,null,null,null,null,null,null,null,null,null,null,null,null,null,null,null,null,null,null,null,null,null,null,null,null,null,"(自由記述)"]
[]
[]
[null,"配管図管理システム",null,null,null,null,null,null,null,null,null,null,null,null,null,null,null,null,null,null,null,null,null,null,null,null,null,null,null,null,null,null,null,null,null,null,null,null,null,null,null,null,null,null,null,null,null,null,null,"(自由記述)"]
[]
[]
[null,"地理情報システム",null,null,null,null,null,null,null,null,null,null,null,null,null,null,null,null,null,null,null,null,null,null,null,null,null,null,null,null,null,null,null,null,null,null,null,null,null,null,null,null,null,null,null,null,null,null,null,"(自由記述)"]
[]
[]
[null,"業務間情報共有化技術",null,null,null,null,null,null,null,null,null,null,null,null,null,null,null,null,null,null,null,null,null,null,null,null,null,null,null,null,null,null,null,null,null,null,null,null,null,null,null,null,null,null,null,null,null,null,null,"(自由記述)"]
[]
[]
[null,"人材育成支援システム",null,null,null,null,null,null,null,null,null,null,null,null,null,null,null,null,null,null,null,null,null,null,null,null,null,null,null,null,null,null,null,null,null,null,null,null,null,null,null,null,null,null,null,null,null,null,null,"(自由記述)"]
[]
[]
[null,"クラウドサービス、Webシステム\n（監視制御系）",null,null,null,null,null,null,null,null,null,null,null,null,null,null,null,null,null,null,null,null,null,null,null,null,null,null,null,null,null,null,null,null,null,null,null,null,null,null,null,null,null,null,null,null,null,null,null,"(自由記述)"]
[]
[]
[null,"クラウドサービス、Webシステム\n（設備保全系）",null,null,null,null,null,null,null,null,null,null,null,null,null,null,null,null,null,null,null,null,null,null,null,null,null,null,null,null,null,null,null,null,null,null,null,null,null,null,null,null,null,null,null,null,null,null,null,"(自由記述)"]
[]
[]
[null,"クラウドサービス、Webシステム\n（事務系）",null,null,null,null,null,null,null,null,null,null,null,null,null,null,null,null,null,null,null,null,null,null,null,null,null,null,null,null,null,null,null,null,null,null,null,null,null,null,null,null,null,null,null,null,null,null,null,"(自由記述)"]
[]
[]
[]
["【広域統合システム】を導入することで、従来個別に行ってきた複数の業務間で情報を共有し、業務の効率化が図られると考えられます。\n\n6-17.水道・下水道事業の各業務について、例示した情報を利用することが有効と思われるものに〇印を選択(プルダウンより選択)してください。なお、ご回答はご担当の事業のみで結構です。"]
[]
[]
[]
[null,null,null,null,null,null,null,null,null,null,null,"運転管理",null,null,null,null,null,null,null,"水運用\n計画",null,"水質管理",null,null,null,"地図情報管理",null,null,null,"保全管理",null,null,null,"営業",null,null,null,"市民情報サービス",null,null,null,"下水道事業の業務",null,null,null,null,null,null,null,null,null,null,null,null,null,"運転管理",null,null,null,"水運用\n計画","水質管理",null,"地図情報管理",null,"保全管理",null,"営業",null,"市民情報サービス",null,"下水道事業の業務"]
["水道事業","業務項目",null,null,"説　明",null,null,null,null,null,null,"ﾌﾟﾛｾｽ\nﾃﾞｰﾀ",null,"警報",null,"状況報告",null,"カメラ\n映像",null,"給水・\n配水計画",null,"水源情報",null,"水質検査\n情報",null,"配管情報",null,"道路台帳\n等",null,"作業管理\n情報",null,"施設・\n設備台帳",null,"料金",null,"需要量",null,"料金\n問合せ",null,"苦情",null,"下記「下水道事業」\n表のデータ",null,null,null,null,null,null,null,null,null,null,null,"水道業務","業務項目","ﾌﾟﾛｾｽ\nﾃﾞｰﾀ","警報","状況報告","カメラ\n映像","給水・\n配水計画","水源情報","水質検査\n情報","配管情報","道路台帳\n等","作業管理\n情報","施設・\n設備台帳","料金","需要量","料金\n問合せ","苦情","下記「下水道事業」\n表のデータ"]
[null,"運転管理",null,null,"施設の運転操作、監視、日常点検を行う業務",null,null,null,null,null,null,null,null,null,null,null,null,null,null,null,null,null,null,null,null,null,null,null,null,null,null,null,null,null,null,null,null,null,null,null,null,null,null,null,null,null,null,null,null,null,null,null,null,null,"運転管理",{"$f":"IF(L222=\"〇\",1,\"\")","v":""},{"$f":"IF(N222=\"〇\",1,\"\")","v":""},{"$f":"IF(P222=\"〇\",1,\"\")","v":""},{"$f":"IF(R222=\"〇\",1,\"\")","v":""},{"$f":"IF(T222=\"〇\",1,\"\")","v":""},{"$f":"IF(V222=\"〇\",1,\"\")","v":""},{"$f":"IF(X222=\"〇\",1,\"\")","v":""},{"$f":"IF(Z222=\"〇\",1,\"\")","v":""},{"$f":"IF(AB222=\"〇\",1,\"\")","v":""},{"$f":"IF(AD222=\"〇\",1,\"\")","v":""},{"$f":"IF(AF222=\"〇\",1,\"\")","v":""},{"$f":"IF(AH222=\"〇\",1,\"\")","v":""},{"$f":"IF(AJ222=\"〇\",1,\"\")","v":""},{"$f":"IF(AL222=\"〇\",1,\"\")","v":""},{"$f":"IF(AN222=\"〇\",1,\"\")","v":""},{"$f":"IF(AP222=\"〇\",1,\"\")","v":""}]
[null,"水運用計画",null,null,"水需要の予測、給水・配水計画の\n立案業務",null,null,null,null,null,null,null,null,null,null,null,null,null,null,null,null,null,null,null,null,null,null,null,null,null,null,null,null,null,null,null,null,null,null,null,null,null,null,null,null,null,null,null,null,null,null,null,null,null,"水運用計画",{"$f":"IF(L223=\"〇\",1,\"\")","v":""},{"$f":"IF(N223=\"〇\",1,\"\")","v":""},{"$f":"IF(P223=\"〇\",1,\"\")","v":""},{"$f":"IF(R223=\"〇\",1,\"\")","v":""},{"$f":"IF(T223=\"〇\",1,\"\")","v":""},{"$f":"IF(V223=\"〇\",1,\"\")","v":""},{"$f":"IF(X223=\"〇\",1,\"\")","v":""},{"$f":"IF(Z223=\"〇\",1,\"\")","v":""},{"$f":"IF(AB223=\"〇\",1,\"\")","v":""},{"$f":"IF(AD223=\"〇\",1,\"\")","v":""},{"$f":"IF(AF223=\"〇\",1,\"\")","v":""},{"$f":"IF(AH223=\"〇\",1,\"\")","v":""},{"$f":"IF(AJ223=\"〇\",1,\"\")","v":""},{"$f":"IF(AL223=\"〇\",1,\"\")","v":""},{"$f":"IF(AN223=\"〇\",1,\"\")","v":""},{"$f":"IF(AP223=\"〇\",1,\"\")","v":""}]
[null,"水質管理",null,null,"水源や配水など水質の管理業務",null,null,null,null,null,null,null,null,null,null,null,null,null,null,null,null,null,null,null,null,null,null,null,null,null,null,null,null,null,null,null,null,null,null,null,null,null,null,null,null,null,null,null,null,null,null,null,null,null,"水質管理","","","","","","","","","","","","","","","",""]
[null,"地図情報管理",null,null,"配水管など面的に広がる情報を地図上で管理する業務",null,null,null,null,null,null,null,null,null,null,null,null,null,null,null,null,null,null,null,null,null,null,null,null,null,null,null,null,null,null,null,null,null,null,null,null,null,null,null,null,null,null,null,null,null,null,null,null,null,"地図情報管理","","","","","","","","","","","","","","","",""]
[null,"保全管理",null,null,"施設の点検、機能を維持するために行う整備および修繕を行う業務",null,null,null,null,null,null,null,null,null,null,null,null,null,null,null,null,null,null,null,null,null,null,null,null,null,null,null,null,null,null,null,null,null,null,null,null,null,null,null,null,null,null,null,null,null,null,null,null,null,"保全管理","","","","","","","","","","","","","","","",""]
[null,"営業",null,null,"料金窓口など需要家向けの業務",null,null,null,null,null,null,null,null,null,null,null,null,null,null,null,null,null,null,null,null,null,null,null,null,null,null,null,null,null,null,null,null,null,null,null,null,null,null,null,null,null,null,null,null,null,null,null,null,null,"営業","","","","","","","","","","","","","","","",""]
[null,"市民情報\nサービス",null,null,"市民向けに情報を提供する業務",null,null,null,null,null,null,null,null,null,null,null,null,null,null,null,null,null,null,null,null,null,null,null,null,null,null,null,null,null,null,null,null,null,null,null,null,null,null,null,null,null,null,null,null,null,null,null,null,null,"市民情報\nサービス","","","","","","","","","","","","","","","",""]
[]
[null,null,null,null,null,null,null,null,null,null,null,"運転管理",null,null,null,null,null,null,null,null,null,"雨水排水支援",null,null,null,null,null,"地図情報管理",null,null,null,"保全管理",null,null,null,"災害対応",null,"水道事業の業務",null,null,null,null,null,null,null,null,null,null,null,null,null,null,null,null,null,"運転管理",null,null,null,null,"雨水排水支援",null,null,"地図情報管理",null,"保全管理",null,"災害対応","水道事業\nの業務"]
["下水道事業","業務項目",null,null,"説　明",null,null,null,null,null,null,"ﾌﾟﾛｾｽ\nﾃﾞｰﾀ",null,"警報",null,"状況報告",null,"カメラ\n映像",null,"水質情報",null,"降雨情報",null,"管路水位情報",null,"排水量\n情報",null,"配管情報",null,"道路台帳等",null,"作業管理情報",null,"施設・\n設備台帳",null,"災害情報",null,"上記「水道事業」\n表のデータ",null,null,null,null,null,null,null,null,null,null,null,null,null,null,null,"下水道業務","業務項目","ﾌﾟﾛｾｽ\nﾃﾞｰﾀ","警報","状況報告","カメラ\n映像","水質情報","降雨情報","管路水位情報","排水量情報","配管情報","道路台帳等","作業管理情報","施設・\n設備台帳","災害情報","下記「水道事業」\n表のデータ"]
[null,"運転管理",null,null,"施設の運転操作、監視、日常点検を行う業務",null,null,null,null,null,null,null,null,null,null,null,null,null,null,null,null,null,null,null,null,null,null,null,null,null,null,null,null,null,null,null,null,null,null,null,null,null,null,null,null,null,null,null,null,null,null,null,null,null,"運転管理",{"$f":"IF(L232=\"〇\",1,\"\")","v":""},{"$f":"IF(N232=\"〇\",1,\"\")","v":""},{"$f":"IF(P232=\"〇\",1,\"\")","v":""},{"$f":"IF(R232=\"〇\",1,\"\")","v":""},{"$f":"IF(T232=\"〇\",1,\"\")","v":""},{"$f":"IF(V232=\"〇\",1,\"\")","v":""},{"$f":"IF(X232=\"〇\",1,\"\")","v":""},{"$f":"IF(Z232=\"〇\",1,\"\")","v":""},{"$f":"IF(AB232=\"〇\",1,\"\")","v":""},{"$f":"IF(AD232=\"〇\",1,\"\")","v":""},{"$f":"IF(AF232=\"〇\",1,\"\")","v":""},{"$f":"IF(AH232=\"〇\",1,\"\")","v":""},{"$f":"IF(AJ232=\"〇\",1,\"\")","v":""},{"$f":"IF(AL232=\"〇\",1,\"\")","v":""}]
[null,"雨水排水支援",null,null,"雨水排除に関して参照する、降雨や管路水位",null,null,null,null,null,null,null,null,null,null,null,null,null,null,null,null,null,null,null,null,null,null,null,null,null,null,null,null,null,null,null,null,null,null,null,null,null,null,null,null,null,null,null,null,null,null,null,null,null,"雨水排水支援",{"$f":"IF(L233=\"〇\",1,\"\")","v":""},{"$f":"IF(N233=\"〇\",1,\"\")","v":""},{"$f":"IF(P233=\"〇\",1,\"\")","v":""},{"$f":"IF(R233=\"〇\",1,\"\")","v":""},{"$f":"IF(T233=\"〇\",1,\"\")","v":""},{"$f":"IF(V233=\"〇\",1,\"\")","v":""},{"$f":"IF(X233=\"〇\",1,\"\")","v":""},{"$f":"IF(Z233=\"〇\",1,\"\")","v":""},{"$f":"IF(AB233=\"〇\",1,\"\")","v":""},{"$f":"IF(AD233=\"〇\",1,\"\")","v":""},{"$f":"IF(AF233=\"〇\",1,\"\")","v":""},{"$f":"IF(AH233=\"〇\",1,\"\")","v":""},{"$f":"IF(AJ233=\"〇\",1,\"\")","v":""},{"$f":"IF(AL233=\"〇\",1,\"\")","v":""}]
[null,"地図情報管理",null,null,"下水管など面的に広がる情報を地図上で管理する業務",null,null,null,null,null,null,null,null,null,null,null,null,null,null,null,null,null,null,null,null,null,null,null,null,null,null,null,null,null,null,null,null,null,null,null,null,null,null,null,null,null,null,null,null,null,null,null,null,null,"地図情報管理","","","","","","","","","","","","","",""]
[null,"保全管理",null,null,"施設の点検、機能を維持するために行う整備および修繕を行う業務",null,null,null,null,null,null,null,null,null,null,null,null,null,null,null,null,null,null,null,null,null,null,null,null,null,null,null,null,null,null,null,null,null,null,null,null,null,null,null,null,null,null,null,null,null,null,null,null,null,"保全管理","","","","","","","","","","","","","",""]
[null,"災害対応",null,null,"豪雨等の災害に対処するための業務",null,null,null,null,null,null,null,null,null,null,null,null,null,null,null,null,null,null,null,null,null,null,null,null,null,null,null,null,null,null,null,null,null,null,null,null,null,null,null,null,null,null,null,null,null,null,null,null,null,"災害対応","","","","","","","","","","","","","",""]

{"sheet":"❶","index":8,"n_rows":20,"n_cols":5,"rows_kept":20,"cut":false,"hidden":false,"merged":[]}
["6-14.～6-16."]
[null,"項　　目","概　　要","水道事業","下水道事業"]
[null,"計画支援技術","大量データの蓄積，解祈により，運用パターンを抽出して計画の精度を向上させる","取水、給水計画支援","ポンプ運転計画支援"]
[null,"制御向上技術","広域の計測情報を収集することにより，よりきめの細かな制御を実現する","広域給水制御","ポンプ井水位集中監視と連動ポンプ運転"]
[null,"安定化技術","他システムとの結合により，システム制御の安定化を実現する","水源・河川システムとの統合による安定給水","水質・温度計測の統合による曝気制御"]
[null,"流入量予測技術","降雨情報などの気象情報や河川情報など広城情報を入手することにより，浸水対策，運転効率向上，職員配備の適正化を回る","取水・薬注制御","ポンプ運転支援（流入量予測）"]
[null,"異常・故障予兆・劣化診断技術","ビッグデータ解析や機械学習、画像診断などの手法により、設備等の診断を行い、異常や故障の兆候を早期に検出したり、劣化を診断したりする","プロセス異常兆候監視技術、設備故障予兆診断技術、設備劣化診断技術","プロセス異常兆候監視技術、設備故障予兆診断技術、設備劣化診断技術"]
[null,"場内無線監視システム","場内の至るところから無線ネットワークを用いて監視が可能なシステム","中央監視室からの現場状況把握向上","中央監視室からの現場状況把握向上"]
[null,"公衆回線利用小規模システム","遠隔通信に公衆回線を用い，安価な遠隔監視を可能にしたシステム","小規模配水監視制御","小規模ポンプ所監視制御"]
[null,"広域通信技術","広域運用システムの通信路として公共施設の下水管渠内光ファイバ網等を利用する","リアルタイム水質監視","マンホールポンプ水位集中監視"]
[null,"機場統合監視システム","複数の無人化機場を統合監視するシステム","水運用センター，広域遠方監視制御","広域遠方監視制御，処理場集約監視よる"]
[null,"Web監視システム","一般の事務用PCやモバイル端末を用いて，事務所などからでも機場の監視が可能なシステム","遠隔監視、ベテラン運転員による遠方指示確認","遠隔監視、ベテラン運転員による遠方指示確認"]
[null,"情報公開システム","事業の各種情報を公開することにより，住民意識の向上を図る","節水ガイダンス","油の処理方法やディスポーザの使い方"]
[null,"配管図管理システム","配管図をデータベース化することにより，事故対策の迅速化や事務処理の効率向上を実現する","水道管路台帳","下水道管敷設台帳"]
[null,"地理情報システム","地図を用いた管路網管理，給水・排水シミュレーションなど","各種シミュレーション","各種シミュレーション"]
[null,"業務間情報共有化技術","情報の一元共有化による事務業務の高度化を通して，窓口業務の効率化、住民サービスの向上を図る","検針端末と水道料金徴収","水道使用量による下水道料金徴収"]
[null,"人材育成支援システム","運転管理業務を模擬訓練したり、過去のナレッジやノウハウ等の記録を閲覧できるようにしたシステムで、人材育成や技術継承を目的としたシステム","人材育成支援システム","人材育成支援システム"]
[null,"クラウドサービス、Webシステム（監視制御系）","サービス提供事業者が運営するクラウドサービスやWebシステムにより、いつでもどこからでも設備の監視制御を可能にするシステム","広域監視サービス、遠隔監視、設備故障監視・診断サービス、\n映像配信サービス","広域監視サービス、遠隔監視、設備故障監視・診断サービス、豪雨通報、\n映像配信サービス"]
[null,"クラウドサービス、Webシステム（設備保全系）","サービス提供事業者が運営するクラウドサービスやWebシステムにより、いつでもどこからでも設備の保全を可能にするシステム","保守点検システム、設備管理サービス、アセットマネジメントサービス","保守点検システム、設備管理サービス、ストックマネジメントサービス"]
[null,"クラウドサービス、Webシステム（事務系）","サービス提供事業者が運営するクラウドサービスやWebシステムにより、いつでもどこからでも事務情報の閲覧や共有をにするシステム","業務情報共有サービス、管路情報管理サービス、水道料金サービス、\n経営支援サービス","業務情報共有サービス、管路情報管理サービス、経営支援サービス"]